Workbook

Sheet ניהול (hidden)
A1: סוג המסגרת | C1: פעולות נעילה/ פתיחה
A2: נא לבחור מתוך הרשימה | C2: כלים | D2: הסבר
A3: מרכז רש"ת/מע"ש 21+ | B3: 1 | D3: הכפתור נועל את הנתונים הנבחרים
A4: מפעל רב נכותי 21+ | D4: הקובץ נשלח עם נעילת נתוני התקן ונוסחאות
A5: מרכז יום (טיפולי/סיעודי) 21+ | B5: 2 | D5: הכפתור פותח את כל הנתונים
A6: יח' טיפולית במרכז רש"ת/מע"ש 21+ | D6: יש להפעיל אותו לאחר אישור בקשת הגוף
A7: יח' מזדקנים במרכז רש"ת | D7: לצורך נעילת שלב אישור בקשת הגוף
A8: מרכז יום לגמלאים | B8: 3 | D8: יש להפעיל את הכפתור אחרי פעולה מס' 2
D9: ואחרי זה כפתור מס' 1
B10: 4 | D10: הכפתור נדרש במקרים מיוחדים
D11: במידה ויש לעשות תיקונים אחרי שלב האישור
D12: או לצרכים טכניים
D13: להפעלתו יש לעשות פעולה מס' 2
D14: ואחרי תיקון נתוני האישור לבצע פעולות 3 ו- 1
B15: 5 | D15: סינון ציוד מוזמן בסעיף "סיכום מפורט" אינו מוגן
D16: מפני שהסינון לא עובד במצב נעול, לכן יש להיזהר
D17: מכול פעולה מעבר מהפעלת הסינון באמצאות הכפתורים

Sheet א. פתיח
B8: תקן ציוד למרכזי יום טיפוליים סיעודיים ו/או תעסוקה
B9: ציוד פרא רפואי, חדר סנוזלן, ציוד למטבח מבשל וציוד לצוות.
B11: רקע כללי
B12: הסיוע ניתן לשיפוץ או ציוד. תקן זה עוסק בציוד.
B13: מענק מעלה | C13: עד 60,000 ₪ אחת ל 3 שנים מתאריך תשלום אחרון.
B14: מענק צמרת | C14: עד 500,000 ₪ ועד 50% מהעלות הכוללת, הנמוך מביניהם, אחת ל 5 שנים מתאריך תשלום אחרון.
B15: יש להיכנס לאתר קרן שלם, פיתוח פיזי מענקים, ולפעול בהתאם להנחיות המתעדכנות באתר.
B16: מטרת תקן ציוד
B17: לסייע לרשויות או גופים המפעילים מסגרות, לבנות את רשימת הציוד בהתאם להיקף ולסוג פעילותם.
B18: התקן מהווה רשימת ציוד מומלצת אשר ניתן לבחור מתוכה את פריטי הציוד הדרושים.
B19: ניתן להשתמש בתקן בצורה מודולרית בהתאם למספר המשתתפים, גודל המקום והתכנים המופעלים בו.
B20: לא נדרש להציג שתי הצעות מחיר, למעט בגיליון ציוד נוסף= ציוד שאינו נמצא בתקן.
B22: הבהרות
B24: הסיוע בציוד למרכזי יום סיעודיים טיפוליים ותעסוקה, יינתן על פי מספר משתתפים.
B25: לתשומת ליבכם, הכמויות של חלק מהציוד נקבעות לפי מספר האנשים במסגרת (כמו לדוגמא: כמות הכיסאות והשולחנות),
B26: ואילו הכמויות של חלק אחר מהציוד הינן קבועות ואינן תלויות במספר האנשים (כמו לדוגמא: ציוד מטבח או מתקני חצר).
B27: במידה וקיים צורך בציוד אשר אינו מופיע בתקן ניתן לבקש בגיליון ציוד נוסף.
B28: הסכומים המופיעים בטבלאות כוללים מע"מ בשיעור 17%.
B29: גובה הסיוע כפוף להחלטות ומדיניות הנהלת הקרן המשתנות/מתעדכנות באתר הקרן.
B31: הנחיות למילוי הקובץ:
B32: שלב הגשת הבקשה:
B33: עליכם למלא גיליון ג' טרם מילוי הגיליונות האחרים.
B34: גיליונות ד' עד י"ב עליכם למלא רק עמודות הצבועות בירוק.
B35: אין לגעת בתאים האחרים- תאים אלו "נעולים".
B37: שלב הדיווח על ההוצאות:
B38: לאחר אישור הבקשה יוחזר הגיליון עם הפריטים המאושרים.
B39: גיליונות ד' עד י"ב, עליכם למלא רק עמודות הצבועות בכתום.
B40: אין לגעת בתאים האחרים- תאים אלו "נעולים".

Sheet ב. תוכן עניינים
B8: תקן ציוד למרכזי יום טיפוליים סיעודיים ו/או תעסוקה
B9: ציוד פרא רפואי, חדר סנוזלן, ציוד למטבח מבשל וציוד לצוות.
B11: תוכן עניינים
B13: לשונית בקובץ | C13: תוכן הלשונית
B14: א | C14: פתיח
B15: ב | C15: תוכן עניינים
B16: ג | C16: שאלון מגיש הבקשה
B17: ד | C17: ריפוי בעיסוק
B18: ה | C18: קלינאות תקשורת
B19: ו | C19: חדר סנוזלן
B20: ז | C20: מתקני חצר
B21: ח | C21: פיזיותרפיה
B22: ט | C22: ציוד טיפולי שיקומי
B23: י | C23: ציוד מטבח מבשל
B24: יא | C24: ציוד לצוות
B25: יב | C25: ציוד נוסף
B26: יג | C26: סיכום
B27: יד | C27: סיכום מפורט (לשימוש משרדי)

Sheet ג. שאלון למילוי מגיש הבקשה
B8: תקן ציוד למרכזי יום טיפוליים סיעודיים ו/או תעסוקה
B9: ציוד פרא רפואי, חדר סנוזלן, ציוד למטבח מבשל וציוד לצוות.
B12: שאלון למגיש הבקשה
B14: הערות והסברים למילוי הבקשה
B15: יש למלא את השאלון לעיל לפני מעבר לכתב הכמויות
B16: הגוף המבקש מתבקש למלא רק פרטים בתאים המסומנים בצבע ירוק . אין לגעת בתאים אחרים.
B17: כל מחירי הציוד כוללים מע"מ בשיעור של 17%
B18: קרן שלם מסייעת למסגרות לאנשים עם מש"ה. במסגרות לאוכלוסיה רב נכותית, ההתיחסות הינה עפי מס' המקבלי השרות המוכרים עם מש"ה.
C22: תאריך הגשת הבקשה
C24: שם המסגרת
C26: סוג המסגרת | G26: נא לבחור מתוך הרשימה
C28: שם הרשות
C30: שם הארגון המפעיל
C32: כתובת המסגרת
C34: שם ושם משפחה איש קשר
C36: תפקיד איש קשר
C38: נייד איש קשר
C40: מייל איש קשר
C42: מספר האנשים שעבורם מיועד הפרויקט
C44: כמה מתוכם מוכרים עם מש"ה (מוגבלות שיכלית התפתחותית)

Sheet ד. ריפוי בעיסוק
B1: ='ב. תוכן עניינים'!C17 -> ריפוי בעיסוק | G1: שלב הגשת הבקשה: | K1: שלב הדיווח על ההוצאות:
B2: שם המסגרת : | C2: ='ג. שאלון למילוי מגיש הבקשה'!G24 -> 0 | G2: עליכם למלא גיליון ג' בטרם מילוי הגיליונות האחרים | K2: לאחר אישור הבקשה יוחזר הגיליון עם הפריטים המאושרים
B3: סוג המסגרת : | C3: ='ג. שאלון למילוי מגיש הבקשה'!G26 -> נא לבחור מתוך הרשימה | G3: גיליונות ד' עד י"ב עליכם למלא רק עמודות הצבועות בירוק | K3: גיליונות ד' עד י"ב עליכם למלא רק עמודות הצבועות בוורוד
B4: מספר האנשים שעבורם מיועד הפרויקט : | C4: ='ג. שאלון למילוי מגיש הבקשה'!G42 -> 0 | G4: אין לגעת בתאים האחרים- תאים אלו יהיו נעולים | K4: אין לגעת בתאים האחרים- תאים אלו יהיו נעולים
B6: תקן ציוד | G6: בקשת הגוף | K6: דיווח לתשלום לאחר ביצוע
B7: פריטים | C7: כמות תקן | D7: עלות ליחידה כולל מע"מ | E7: סך עלות כולל מע"מ | G7: כמות מבוקשת עבור חדר בודד | H7: תקציב מבוקש | I7: הערות הגוף | K7: הפריט שנרכש | L7: מס' חשבונית מס | M7: תאריך חשבונית מס | N7: סכום כולל מע"מ
B8: ריהוט | G8: =B8 -> ריהוט | K8: =G8 -> ריהוט
B9: מזרונים טיפוליים | C9: 3 | D9: 150 | E9: =D9*C9 -> 450 | H9: =G9*D9 -> 0
B10: ארון אחסון | C10: 1 | D10: 2000 | E10: 2000 | H10: 0
B11: מדף אחסון לציוד גדול תלוי | C11: 1 | D11: 1000 | E11: 1000 | H11: 0
B12: כסא מתכוונן | C12: 1 | D12: 1500 | E12: 1500 | H12: 0
B13: כסא מטפל | C13: 1 | D13: 760 | E13: 760 | H13: 0
B14: לוח מחיק | C14: 1 | D14: 450 | E14: 450 | H14: 0
B15: מראה קבועה ווילון | C15: 1 | D15: 800 | E15: 800 | H15: 0
B16: שולחן מתכוונן חשמלי | C16: 1 | D16: 4000 | E16: 4000 | H16: 0
B17: סה"כ ריהוט כולל מע"מ | E17: =SUM(E9:E16) -> 10960 | H17: =SUM(H9:H16) -> 0 | I17: =B17 -> סה"כ ריהוט כולל מע"מ | K17: =B17 -> סה"כ ריהוט כולל מע"מ | N17: =SUM(N9:N16) -> 0
B18: ציוד | G18: =B18 -> ציוד | K18: =G18 -> ציוד
B19: נקודת תליה בתקרה, כולל התקנה | C19: 2 | D19: 500 | E19: 1000 | H19: =G19*D19 -> 0
B20: סקוטר למשקל של מבוגרים | C20: 2 | D20: 250 | E20: 500 | H20: 0
B21: חבית טיפולית | C21: 1 | D21: 1300 | E21: 1300 | H21: 0
B22: סט חמישה ספסלים | C22: 1 | D22: 800 | E22: 800 | H22: 0
B23: ערסל בד טיפולי | C23: 1 | D23: 200 | E23: 200 | H23: 0
B24: צלחת וסטיבולרית לבוגרים | C24: 1 | D24: 250 | E24: 250 | H24: 0
B25: כדורים (סכום גלובלי) | C25: 1 | D25: 500 | E25: 500 | H25: 0
B26: גלילים בגדלים שונים (סכום גלובלי) | C26: 1 | D26: 1500 | E26: 1500 | H26: 0
B27: וסט נאופרן | C27: 1 | D27: 450 | E27: 450 | H27: 0
B28: משחקי גריה שונים (סכום גלובלי) | C28: 1 | D28: 1000 | E28: 1000 | H28: 0
B29: עזרים לטיפול קבוצתי (טבעות, מטפחות, כדורים, מצנח וכד') (סכום גלובלי) | C29: 1 | D29: 2000 | E29: 2000 | H29: 0
B30: משחקי מרחב, בנייה והרכבה (סכום גלובלי) | C30: 1 | D30: 3000 | E30: 3000 | H30: 0
B31: פאזלים ומשחקי תפיסה (סכום גלובלי) | C31: 1 | D31: 2000 | E31: 2000 | H31: 0
B32: אביזרי ADL מותאמים (סכום גלובלי) | C32: 1 | D32: 1000 | E32: 1000 | H32: 0
B33: ציוד להכנת סדי ידיים | C33: 1 | D33: 3000 | E33: 3000 | H33: 0
B34: סה"כ ציוד כולל מע"מ | E34: =SUM(E19:E33) -> 18500 | H34: =SUM(H19:H33) -> 0 | I34: =B34 -> סה"כ ציוד כולל מע"מ | K34: =B34 -> סה"כ ציוד כולל מע"מ | N34: =SUM(N19:N33) -> 0
B35: טכנולוגיה | G35: =B35 -> טכנולוגיה | K35: =G35 -> טכנולוגיה
B36: מחשב נייח/נייד עם מסך מגע | C36: 1 | D36: 3100 | E36: 3100 | H36: =G36*D36 -> 0
B37: מדפסת | C37: 1 | D37: 1600 | E37: 1600 | H37: 0
B38: אייפד (1 ל 5 אנשים) Ipad 10.2" 128GB WIFI | C38: 1 | D38: 2200 | E38: 2200 | H38: 0
B39: תוכנות לאייפד | C39: 1 | D39: 5000 | E39: 5000 | H39: 0
B40: מגן לאייפד + מדבקת זכוכית | C40: 1 | D40: 450 | E40: 450 | H40: 0
B41: Apple tv | C41: 1 | D41: 900 | E41: 900 | H41: 0
B42: מסך הקרנה נגלל | C42: 1 | D42: 3800 | E42: 3800 | H42: 0
B43: מסך מגע 65" לתלייה על קיר+ ארון + מחשב להפעלה, ניתן להשתמש גם בלוח חכם | C43: 1 | D43: 40000 | E43: 40000 | H43: =G43*D43 -> 0
B44: מערכת מציאות מדומה | C44: 1 | D44: 40000 | E44: 40000 | H44: 0
B45: עכברים ייחודיים | C45: 1 | D45: 2500 | E45: 2500 | H45: 0
B46: מקלדות ייחודיות | C46: 1 | D46: 1200 | E46: 1200 | H46: 0
B47: מתגים ומתאמי מתגים | C47: 1 | D47: 4500 | E47: 4500 | H47: 0
B48: זרועות למתגים ולטאבלט | C48: 1 | D48: 5000 | E48: 5000 | H48: 0
B49: צעצועים מותאמים - סכום גלובלי | C49: 1 | D49: 5000 | E49: 5000 | H49: 0
B50: סה"כ טכנולוגיה כולל מע"מ | E50: =SUM(E36:E49) -> 115250 | H50: =SUM(H36:H49) -> 0 | I50: =B50 -> סה"כ טכנולוגיה כולל מע"מ | K50: =B50 -> סה"כ טכנולוגיה כולל מע"מ | N50: =SUM(N36:N49) -> 0
B51: סה"כ ציוד ריפוי בעיסוק כולל מע"מ | E51: =E17+E34+E50 -> 144710 | H51: =H17+H34+H50 -> 0 | I51: =B51 -> סה"כ ציוד ריפוי בעיסוק כולל מע"מ | K51: =B51 -> סה"כ ציוד ריפוי בעיסוק כולל מע"מ | N51: =N17+N34+N50 -> 0

Sheet ה. קלינאות תקשורת
B1: ='ב. תוכן עניינים'!C18 -> קלינאות תקשורת | G1: שלב הגשת הבקשה: | K1: שלב הדיווח על ההוצאות:
B2: שם המסגרת : | C2: ='ג. שאלון למילוי מגיש הבקשה'!G24 -> 0 | G2: עליכם למלא גיליון ג' בטרם מילוי הגיליונות האחרים. | K2: לאחר אישור הבקשה יוחזר הגיליון עם הפריטים המאושרים
B3: סוג המסגרת : | C3: ='ג. שאלון למילוי מגיש הבקשה'!G26 -> נא לבחור מתוך הרשימה | G3: גיליונות ד' עד י"ב עליכם למלא רק עמודות הצבועות בירוק | K3: גיליונות ד' עד י"ב עליכם למלא רק עמודות הצבועות בוורוד
B4: מספר האנשים שעבורם מיועד הפרויקט : | C4: ='ג. שאלון למילוי מגיש הבקשה'!G42 -> 0 | G4: אין לגעת בתאים האחרים- תאים אלו יהיו נעולים | K4: אין לגעת בתאים האחרים- תאים אלו יהיו נעולים
B5: תקן ציוד | G5: בקשת הגוף | K5: דיווח לתשלום לאחר ביצוע
B6: פריטים | C6: כמות תקן | D6: עלות ליחידה כולל מע"מ | E6: סך עלות כולל מע"מ | G6: כמות מבוקשת עבור חדר בודד | H6: תקציב מבוקש | I6: הערות הגוף | K6: הפריט שנרכש | L6: מס' חשבונית מס | M6: תאריך חשבונית מס | N6: סכום כולל מע"מ
B7: מיחשוב | G7: =B7 -> מיחשוב | K7: =G7 -> מיחשוב
B8: מחשב נייח /נייד | C8: 1 | D8: 3100 | E8: =D8*C8 -> 3100 | H8: =G8*D8 -> 0
B9: מדפסת משולבת עם יישומי סריקה וצילום, פלט צבעוני | C9: 1 | D9: 1600 | E9: 1600 | H9: =G9*D9 -> 0
B10: מכשיר למינציה | C10: 1 | D10: 500 | E10: 500 | H10: =G10*D10 -> 0
B11: מחשב לוח (אייפד/טאבלט) | C11: 1 | D11: 2200 | E11: 2200 | H11: =G11*D11 -> 0
B12: אפליקציות למחשב לוח (אייפד/טאבלט) | C12: 1 | D12: 1200 | E12: 1200 | H12: =G12*D12 -> 0
B13: סה"כ מחשבים כולל מע"מ | E13: =SUM(E8:E12) -> 8600 | H13: =SUM(H8:H12) -> 0 | I13: =B13 -> סה"כ מחשבים כולל מע"מ | K13: =B13 -> סה"כ מחשבים כולל מע"מ | N13: =SUM(N8:N12) -> 0
B14: תקשורת תומכת וחליפית | G14: =B14 -> תקשורת תומכת וחליפית | K14: =G14 -> תקשורת תומכת וחליפית
B15: פלטים קוליים (סכום גלובלי) | C15: 1 | D15: 5000 | E15: 5000 | H15: =G15*D15 -> 0
B16: מתגים (סכום גלובלי) | C16: 1 | D16: 2000 | E16: 2000 | H16: 0
B17: אפליקציות לתקשורת תומכת חליפית (סכום גלובלי) | C17: 1 | D17: 2000 | E17: 2000 | H17: 0
B18: תוכנת גריד (סכום גלובלי) | C18: 1 | D18: 7000 | E18: =D18*C18 -> 7000 | H18: =G18*D18 -> 0
B19: סה"כ תקשורת תומכת וחליפית כולל מע"מ | E19: =SUM(E15:E18) -> 16000 | H19: =SUM(H15:H18) -> 0 | I19: =B19 -> סה"כ תקשורת תומכת וחליפית כולל מע"מ | K19: =B19 -> סה"כ תקשורת תומכת וחליפית כולל מע"מ | N19: =SUM(N15:N18) -> 0
B20: תוכנות ומשחקים | G20: =B20 -> תוכנות ומשחקים | K20: =G20 -> תוכנות ומשחקים
B21: ציוד טיפולי, ספרים, כרטיסיות ומשחקי שפה ותקשורת | C21: 1 | D21: 3000 | E21: 3000 | H21: 0
B22: תוכנות תקשורת לאי-פד כמו sounding board, book creator,choice boards, snap scene ועוד, בהתאם למאפייני האוכלוסיה | C22: 1 | D22: 3000 | E22: 3000 | H22: 0
B23: אי פד | C23: =IF(C4<20,2,IF(C4<50,4,5)) -> 2 | D23: 2000 | E23: 4000 | H23: 0
B24: סה"כ תוכנות ומשחקים כולל מע"מ | E24: =SUM(E21:E23) -> 10000 | H24: =SUM(H21:H23) -> 0 | I24: =B24 -> סה"כ תוכנות ומשחקים כולל מע"מ | K24: =B24 -> סה"כ תוכנות ומשחקים כולל מע"מ | N24: =SUM(N21:N23) -> 0
B25: ריהוט | G25: =B25 -> ריהוט | K25: =G25 -> ריהוט
B26: ארון אחסון לציוד | C26: 1 | D26: 2000 | E26: 2000 | H26: =G26*D26 -> 0
B27: כסאות | C27: 2 | D27: 400 | E27: 800 | H27: 0
B28: שולחנות | C28: 1 | D28: 550 | E28: 550 | H28: 0
B29: מראה ווילון | C29: 1 | D29: 800 | E29: 800 | H29: 0
B30: לוח מחיק | C30: 1 | D30: 450 | E30: 450 | H30: 0
B31: שטיח | C31: 1 | D31: 350 | E31: 350 | H31: 0
B32: סה"כ ריהוט כולל מע"מ | E32: =SUM(E26:E31) -> 4950 | H32: =SUM(H26:H31) -> 0 | I32: =B32 -> סה"כ ריהוט כולל מע"מ | K32: =B32 -> סה"כ ריהוט כולל מע"מ | N32: =SUM(N26:N31) -> 0
B33: סה"כ ציוד קלינאות תקשורת כולל מע"מ | E33: =E13+E19+E24+E32 -> 39550 | H33: =H13+H19+H24+H32 -> 0 | I33: =B33 -> סה"כ ציוד קלינאות תקשורת כולל מע"מ | K33: =B33 -> סה"כ ציוד קלינאות תקשורת כולל מע"מ | N33: =N13+N19+N24+N32 -> 0

Sheet ו. סנוזלן
B1: ='ב. תוכן עניינים'!C19 -> חדר סנוזלן | G1: שלב הגשת הבקשה: | K1: שלב הדיווח על ההוצאות:
B2: שם המסגרת | C2: ='ג. שאלון למילוי מגיש הבקשה'!G24 -> 0 | G2: עליכם למלא גיליון ג' בטרם מילוי הגיליונות האחרים. | K2: לאחר אישור הבקשה יוחזר הגיליון עם הפריטים המאושרים
B3: סוג המסגרת | C3: ='ג. שאלון למילוי מגיש הבקשה'!G26 -> נא לבחור מתוך הרשימה | G3: גיליונות ד' עד י"ב עליכם למלא רק עמודות הצבועות בירוק | K3: גיליונות ד' עד י"ב עליכם למלא רק עמודות הצבועות בכתום | N3: צבועות בוורוד
B4: מספר האנשים שעבורם מיועד הפרויקט | C4: ='ג. שאלון למילוי מגיש הבקשה'!G42 -> 0 | G4: אין לגעת בתאים האחרים- תאים אלו יהיו נעולים | K4: אין לגעת בתאים האחרים- תאים אלו יהיו נעולים
B5: תקן ציוד | G5: בקשת הגוף | K5: דיווח לתשלום לאחר ביצוע
B6: פריטים | C6: כמות תקן | D6: עלות ליחידה כולל מע"מ | E6: סך עלות כולל מע"מ | G6: כמות מבוקשת עבור חדר בודד | H6: תקציב מבוקש | I6: הערות הגוף | K6: הפריט שנרכש | L6: מס' חשבונית מס | M6: תאריך חשבונית מס | N6: סכום כולל מע"מ
B7: מנוף תקרה+ התקנה (לסיעודיים) | C7: 1 | D7: 25000 | E7: =D7*C7 -> 25000 | H7: =G7*D7 -> 0
B8: עמוד בועות | C8: 1 | D8: 8000 | E8: =D8*C8 -> 8000 | H8: =G8*D8 -> 0
B9: מראות מחוסמות | C9: 1 | D9: 1750 | E9: 1750 | H9: 0
B10: בסיס מרופד | C10: 1 | D10: 1200 | E10: 1200 | H10: 0
B11: פרוג'קטור | C11: 1 | D11: 5500 | E11: 5500 | H11: 0
B12: פופ | C12: 1 | D12: 850 | E12: 850 | H12: 0
B13: מערכת מוסיקה | C13: 1 | D13: 1600 | E13: 1600 | H13: 0
B14: ריפוד רצפה וקירות ל 20 מ"ר | C14: 20 | D14: 400 | E14: 8000 | H14: 0
B15: סיבים אופטיים | C15: 1 | D15: 6850 | E15: 6850 | H15: 0
B16: כדור מראות+מקרן | C16: 1 | D16: 1200 | E16: 1200 | H16: =G16*D16 -> 0
B17: נדנדה | C17: 1 | D17: 950 | E17: 950 | H17: 0
B18: מתרגם קול לאור | C18: 1 | D18: 9000 | E18: 9000 | H18: 0
B19: מתקן גירוי תגובה | C19: 1 | D19: 5500 | E19: 5500 | H19: 0
B20: אביזרי עיסוי | C20: 1 | D20: 2500 | E20: 2500 | H20: 0
B21: אביזרי גריה קטנים | C21: 1 | D21: 860 | E21: 860 | H21: 0
B22: ארון אחסון לעזרים | C22: 2 | D22: 2000 | E22: 4000 | H22: 0
B23: סה"כ ציוד חדר סנוזלן כולל מע"מ | E23: =SUM(E7:E22) -> 82760 | H23: =SUM(H7:H22) -> 0 | I23: =B23 -> סה"כ ציוד חדר סנוזלן כולל מע"מ | K23: =B23 -> סה"כ ציוד חדר סנוזלן כולל מע"מ | N23: =SUM(N7:N22) -> 0
B25: הערה:
B26: ציוד לחדר סנוזלן מותנה בהפעלת איש מקצוע שקיבל הכשרה בתחום. גודל חדר מינימאלי 20 מ"ר+ 5 מ"ר מבואה.

Sheet ז. מתקני חצר
B1: ='ב. תוכן עניינים'!C20 -> מתקני חצר | H1: שלב הגשת הבקשה: | L1: שלב הדיווח על ההוצאות:
B2: שם המסגרת : | C2: ='ג. שאלון למילוי מגיש הבקשה'!G24 -> 0 | H2: עליכם למלא גיליון ג' בטרם מילוי הגיליונות האחרים. | L2: לאחר אישור הבקשה יוחזר הגיליון עם הפריטים המאושרים
B3: סוג המסגרת : | C3: ='ג. שאלון למילוי מגיש הבקשה'!G26 -> נא לבחור מתוך הרשימה | H3: גיליונות ד' עד י"ב עליכם למלא רק עמודות הצבועות בירוק | L3: גיליונות ד' עד י"ב עליכם למלא רק עמודות הצבועות בוורוד | O3: בוורוד
B4: מספר האנשים שעבורם מיועד הפרויקט : | C4: ='ג. שאלון למילוי מגיש הבקשה'!G42 -> 0 | H4: אין לגעת בתאים האחרים- תאים אלו יהיו נעולים | L4: אין לגעת בתאים האחרים- תאים אלו יהיו נעולים
H5: בקשת הגוף | L5: דיווח לתשלום לאחר ביצוע
B6: מתקן | C6: תיאור | D6: כמות תקן למסגרת | E6: מחיר ליחידה | F6: תקציב מומלץ לפי תקן | H6: כמות מבוקשת | I6: תקציב מבוקש לקבוצה | J6: הערות הגוף | L6: הפריט שנרכש | M6: מס' חשבונית מס | N6: תאריך חשבונית מס | O6: סכום כולל מע"מ
B7: לחיצת חזה משיכה עליונה | C7: מתקן זוגי דחיקת חזה ומשיכה עליונה זוגי שתי מנחי פעילות אפשריות מנח יד אופקי ואנכי אימון שרירי חזה כלל השרירים כולל מדרכי רגל לקיבוע הגפיים | D7: 1 | E7: 15000 | F7: =D7*E7 -> 15000 | I7: =E7*H7 -> 0
B8: מתקן דחיקת כתפיים למשתמש | C8: מתקן דחיקת כתפיים לאימון שרירי הכתפים והיד הקדמית בלדחיקה מעלה לכיוון הכתף כולל ידיות לקימה וישיבה והנגשה לאוכלוסיות מיוחדות כולל מדרכי רגל לקיבוע הגפיים | D8: 1 | E8: 8500 | F8: =D8*E8 -> 8500 | I8: =E8*H8 -> 0
B9: מתקן פרפר חזה | C9: מתקן פרפר סגירה לאימון שרירי החזה ,בתוספת זוג ידיות אחיזה של מנחי פעילות של סגירה צרה וסגירה רחבה כולל משענות יד ומדרך רגל לקיבוע הגפיים | D9: 1 | E9: 10500 | F9: 10500 | I9: =E9*H9 -> 0
B10: מתקן פרפר הפוך | C10: מתקן פרפר פתיחה לאימון שרירי החזה, בתוספת ידיות אחיזה כולל משענות יד ומדרך רגל לקיבוע הגפיים | D10: 1 | E10: 10500 | F10: 10500 | I10: =E10*H10 -> 0
B11: מתקן מקבילי כנף לזוג משתמשים | C11: מקבילי כנף בשני גבהים ברוחב אופטימאלי לאימון יד אחורית מונגש לאוכלוסיות גבוהות ונמוכות | D11: 1 | E11: 6000 | F11: 6000 | I11: 0
B12: מתקן דחיקת רגליים לזוג משתמשים | C12: מתקן דחיקת ארבע ראשים ושרירי התאומים בישיבה – כולל מנגנון הבטחה ומעצור למניעת היפוך זרוע ומפתח קיצוני | D12: 1 | E12: 11000 | F12: 11000 | I12: 0
B13: מתקן סקי | C13: מתקן סקי לאימון אירובי פעילות ידיים רגליים בתנועה קדימה ואחורה כולל מעצור למניעת מפתח קיצוני | D13: 1 | E13: 7000 | F13: 7000 | I13: 0
B14: מתקן הליכה באוויר לזוג משתמשים | C14: מתקן הליכה באוויר לזוג לאימון אירובי אימון ופיתוח מיומניות הליכה ,הגמשת המפשעה תנועת רגליים קדימה ואחורה כולל מעצור למניעת מפתח קיצוני, עד 70 מעלות | D14: 1 | E14: 11000 | F14: 11000 | I14: 0
B15: מתקן חתירה בכורסא | C15: מתקן אירובי לפלג גוף עליון לאימון הגב והזרועות לאימון אירובי ,תנועת ידיות אחיזה קדימה ואחורה כולל מעצור למניעת מפתח קיצוני, עד 70 מעלות | D15: 1 | E15: 7000 | F15: 7000 | I15: 0
B16: ממתקן מאמן אגן שרירי בטן ישבן וירכיים בתנועת מטוטלת | C16: התקן לארבעה משתמשים כולל תחנות לכיפוף ברכיים ותנועת אגן, חיזוק מותניים בטן תחתונה והצרת היקפי מותן חיזוק ואימון ישבן יריכיים כולל מעצור למניעת מפתח קיצוני, עד 70 מעלות | D16: 1 | E16: 9500 | F16: 9500 | I16: 0
B17: מתקן אופני ידיים רגליים | C17: מתקן לאימון קואורדינציה ותיאום יד ורגל, ביצוע תנועות סיבוב אופני ידיים לחיזוק רצועות הכתפיים יחד עם ביצוע ודיווש רגליים לחיזוק רגליים, ירך וישבן כולל מנגנון התנגדות אופטימאלית נגיש לכלל האוכלוסיות | D17: 1 | E17: 7000 | F17: 7000 | I17: 0
B18: מתקן אימון פולי תחתון בתמיכת חזה | C18: מתקן פעילות ליד קדמית בצורת פעילות של משיכה תחתונה בתמיכת חזה, פעילות בישיבה זקופה 3 מנחי פעילות אפשריות מנח יד אופקי ואנכי אימון שרירי היד הקדמית ושרירי שכמות / גב כולל מדרכי רגל לקיבוע הגפיים | D18: 1 | E18: 9500 | F18: 9500 | I18: 0
B19: מתקן אופני ספיננג | C19: מתקן לאימון קואורדינציה ותיאום יד ורגל, ביצוע תנועות סיבוב אופני ידיים לחיזוק רצועות הכתפיים יחד עם ביצוע ודיווש רגליים לחיזוק רגליים, ירך וישבן כולל מנגנון התנגדות אופטימאלית. נגיש לכלל האוכלוסיות | D19: 1 | E19: 6500 | F19: 6500 | I19: 0
B20: מתקן דחיקת רגליים לארבע | C20: מתקן דחיקה לארבע אימון ארבע ראשים ושרירי התאומים בישיבה – כולל מנגנון הבטחה ומעצור למניעת היפוך זרוע ומפתח קיצוני | D20: 1 | E20: 15000 | F20: 15000 | I20: 0
B21: מתקן מתח –מקבילים וכורסת בטן | C21: מתקן לאימון פונקציונאלי אימון כושר חופשי מודולארי מעוגן באמצעות חובקים . ניתן לקבלו במספר צורות וגבהים בהתאם לגרישות לקוח וצורת האימון המבוקשת | D21: 1 | E21: 14500 | F21: 14500 | I21: 0
B22: נדנדה קן לציפור | C22: נדנדה קן לציפור | D22: 1 | E22: 11800 | F22: 11800 | I22: 0
B23: מתקני מוזיקה | C23: מתקני מוזיקה לחצר | D23: 1 | E23: 5000 | F23: 5000 | I23: 0
B24: כדורגל שולחן | C24: משחק כדורגל שולחן | D24: 1 | E24: 4690 | F24: 4690 | I24: 0
B25: הוקי אויר | C25: משחק הוקי | D25: 1 | E25: 2950 | F25: 2950 | I25: 0
B26: משטח גומי | C26: משטח גומי עלות למ"ר 1 | D26: 80 | E26: 220 | F26: 17600 | I26: 0
B27: סה"כ מתקני חצר (כולל מע"מ) | F27: =SUM(F7:F26) -> 190540 | I27: =SUM(I7:I26) -> 0 | J27: =B27 -> סה"כ מתקני חצר (כולל מע"מ) | L27: =J27 -> סה"כ מתקני חצר (כולל מע"מ) | O27: =SUM(O7:O26) -> 0
B29: הערות:
B30: האישור מותנה בהצגת תכנית העמדת המתקנים
B31: המתקנים מחויבים בתו תקן
B32: הסעיפים הנ"ל מציגים מתקנים לדוגמה.

Sheet ח. פיזיותרפיה
B1: ='ב. תוכן עניינים'!C21 -> פיזיותרפיה | G1: שלב הגשת הבקשה: | K1: שלב הדיווח על ההוצאות:
B2: שם המסגרת : | C2: ='ג. שאלון למילוי מגיש הבקשה'!G24 -> 0 | G2: עליכם למלא גיליון ג' בטרם מילוי הגיליונות האחרים. | K2: לאחר אישור הבקשה יוחזר הגיליון עם הפריטים המאושרים
B3: סוג המסגרת : | C3: ='ג. שאלון למילוי מגיש הבקשה'!G26 -> נא לבחור מתוך הרשימה | G3: גיליונות ד' עד י"ב עליכם למלא רק עמודות הצבועות בירוק | K3: גיליונות ד' עד י"ב עליכם למלא רק עמודות הצבועות בכתום | M3: וורוד
B4: מספר האנשים שעבורם מיועד הפרויקט : | C4: ='ג. שאלון למילוי מגיש הבקשה'!G42 -> 0 | G4: אין לגעת בתאים האחרים- תאים אלו יהיו נעולים | K4: אין לגעת בתאים האחרים- תאים אלו יהיו נעולים
B5: תקן | G5: בקשת הגוף | K5: דיווח לתשלום לאחר ביצוע
B6: פריטים | C6: כמות תקן | D6: עלות ליחידה כולל מע"מ | E6: סך עלות כולל מע"מ | G6: כמות מבוקשת | H6: תקציב מבוקש | I6: הערות הגוף | K6: הפריט שנרכש | L6: מס' חשבונית מס | M6: תאריך חשבונית מס | N6: סכום כולל מע"מ
B7: ציוד כללי לחדר פיזיותרפיה
B8: בובט מיטת טיפול | C8: 1 | D8: 6500 | E8: =D8*C8 -> 6500 | H8: =G8*D8 -> 0
B9: כסא מטפל | C9: 1 | D9: 760 | E9: 760 | H9: 0
B10: סולם שבדי ותוספות | C10: 1 | D10: 2500 | E10: 2500 | H10: 0
B11: אחות אילמת | C11: 1 | D11: 450 | E11: 450 | H11: 0
B12: מקבילים | C12: 1 | D12: 4500 | E12: 4500 | H12: 0
B13: ארון איחסון | C13: 1 | D13: 2000 | E13: 2000 | H13: 0
B14: מחשוב | C14: 1 | D14: 3100 | E14: 3100 | H14: 0
B15: סה"כ ציוד לחדר פיזיותרפיה כולל מע"מ | E15: =SUM(E8:E14) -> 19810 | H15: =SUM(H8:H14) -> 0 | I15: =B15 -> סה"כ ציוד לחדר פיזיותרפיה כולל מע"מ | K15: =B15 -> סה"כ ציוד לחדר פיזיותרפיה כולל מע"מ | N15: =SUM(N8:N14) -> 0
B16: הושבת מיוחדת
B17: כיסא אקטיבי מיוחד קטן/בינוני | C17: 1 | D17: 14500 | E17: 14500 | H17: 0
B18: כיסא אקטיבי מיוחד גדול | C18: 1 | D18: 17550 | E18: 17550 | H18: 0
B19: סה"כ הושבה מיוחדת כולל מע"מ | E19: =SUM(E17:E18) -> 32050 | H19: =SUM(H17:H18) -> 0 | I19: =B19 -> סה"כ הושבה מיוחדת כולל מע"מ | K19: =B19 -> סה"כ הושבה מיוחדת כולל מע"מ | N19: =SUM(N17:N18) -> 0
B20: עמידונים
B21: עמידון קידמי כולל תמיכות | C21: 1 | D21: 16000 | E21: 16000 | H21: 0
B22: עמידון אחורי כולל תמיכות | C22: 1 | D22: 16000 | E22: 16000 | H22: 0
B23: מיטת טיל גדולה | C23: 1 | D23: 15000 | E23: 15000 | H23: 0
B24: עמידון גדול כולל תמיכות מרובות | C24: 1 | D24: 23400 | E24: 23400 | H24: 0
B25: ישיבה לעמידה עם תמיכות מרובות | C25: 1 | D25: 45780 | E25: 45780 | H25: 0
B26: סה"כ עלות עמודונים כולל מע"מ | E26: =SUM(E21:E25) -> 116180 | H26: =SUM(H21:H25) -> 0 | I26: =B26 -> סה"כ עלות עמודונים כולל מע"מ | K26: =B26 -> סה"כ עלות עמודונים כולל מע"מ | N26: =SUM(N21:N25) -> 0 | XFD26: =SUM(H26:XFC26) -> 0
B27: הליכונים
B28: הליכון קידמי פשוט | C28: 1 | D28: 200 | E28: 200 | H28: 0
B29: הליכון אחורי ק | C29: 1 | D29: 1400 | E29: 1400 | H29: 0
B30: הליכון אחורי ב | C30: 1 | D30: 1850 | E30: 1850 | H30: 0
B31: הליכון אחורי ג | C31: 1 | D31: 2000 | E31: 2000 | H31: 0
B32: הליכון אמות הדראולי | C32: 1 | D32: 3800 | E32: 3800 | H32: 0
B33: הליכון אמות רגיל | C33: 1 | D33: 800 | E33: 800 | H33: 0
B34: רולטור בסיסי | C34: 1 | D34: 450 | E34: 450 | H34: 0
B35: רולטור מיוחד תמיכות | C35: 1 | D35: 1790 | E35: 1790 | H35: 0
B36: הליכון פייסר | C36: 1 | D36: 17550 | E36: 17550 | H36: 0
B37: הליכון גרילו | C37: 1 | D37: 12450 | E37: 12450 | H37: 0
B38: הליכון אוכף | C38: 1 | D38: 10500 | E38: 10500 | H38: 0
B39: סה"כ עלות הליכונים כולל מע"מ | E39: =SUM(E28:E38) -> 52790 | H39: =SUM(H28:H38) -> 0 | I39: =B39 -> סה"כ עלות הליכונים כולל מע"מ | K39: =B39 -> סה"כ עלות הליכונים כולל מע"מ | N39: =SUM(N28:N38) -> 0
B40: מנופים וערסלים
B41: מנוף תקרה+ התקנה | C41: 1 | D41: 25000 | E41: 25000 | H41: 0
B42: מנוף רצפה | C42: 1 | D42: 13900 | E42: 13900 | H42: 0
B43: מנופי העמדה | C43: 1 | D43: 14000 | E43: 14000 | H43: 0
B44: ערסלים | C44: 1 | D44: 1800 | E44: 1800 | H44: 0
B45: תוספת לערסלים מיוחדים | C45: 1 | D45: 5500 | E45: 5500 | H45: 0
B46: סה"כ עלות מנופים וערסלים כולל מע"מ | E46: =SUM(E41:E45) -> 60200 | H46: =SUM(H41:H45) -> 0 | I46: =B46 -> סה"כ עלות מנופים וערסלים כולל מע"מ | K46: =B46 -> סה"כ עלות מנופים וערסלים כולל מע"מ | N46: =SUM(N41:N45) -> 0 | XFD46: =SUM(A46:XFC46) -> 60200
B47: מוטוריקה גסה
B48: נדנדות | C48: 1 | D48: 4570 | E48: 4570 | H48: 0
B49: גלילים | C49: 1 | D49: 2860 | E49: 2860 | H49: 0
B50: כדורים שונים | C50: 1 | D50: 1480 | E50: 1480 | H50: 0
B51: עזרים לפיתוח שיווי משקל | C51: 3 | D51: 500 | E51: 1500 | H51: 0
B52: מזרונים | C52: 1 | D52: 1500 | E52: 1500 | H52: 0
B53: אביזרי טיפוס | C53: 1 | D53: 3000 | E53: 3000 | H53: 0
B54: ערכות הפעלה | C54: 1 | D54: 2300 | E54: 2300 | H54: 0
B55: אביזרים לפעילות קבוצתית | C55: 1 | D55: 4000 | E55: 4000 | H55: 0
B56: משחקי גירוי תגובה | C56: 1 | D56: 3000 | E56: 3000 | H56: 0
B57: התקנות והתאמות | C57: 1 | D57: 1500 | E57: 1500 | H57: 0
B58: עזרי הפעלה ועוררות | C58: 1 | D58: 1200 | E58: 1200 | H58: =G58*D58 -> 0
B59: עזרי פעילות תנועתית | C59: 1 | D59: 3500 | E59: =D59*C59 -> 3500 | H59: 0
B60: כח וסיבולת | C60: 1 | D60: 1500 | E60: 1500 | H60: 0
B61: ארון אחסון לאביזרים הקטנים | C61: 1 | D61: 2000 | E61: 2000 | H61: 0
B62: מדף אחסון לכדורים וגלילים | C62: 1 | D62: 1700 | E62: 1700 | H62: 0
B63: סה"כ מוטוריקה גסה כולל מע"מ | E63: =SUM(E48:E62) -> 35610 | H63: =SUM(H48:H62) -> 0 | I63: =B63 -> סה"כ מוטוריקה גסה כולל מע"מ | K63: =B63 -> סה"כ מוטוריקה גסה כולל מע"מ | N63: =SUM(N48:N62) -> 0
B64: מכשירי כושר
B65: אופנים + טלויזיה | C65: 1 | D65: 5500 | E65: 5500 | H65: 0
B66: מדרגות ארוביות | C66: 1 | D66: 1450 | E66: 1450 | H66: 0
B67: בוסו | C67: 1 | D67: 1760 | E67: 1760 | H67: 0
B68: פולי | C68: 1 | D68: 6800 | E68: 6800 | H68: 0
B69: מעמד עם APT | C69: 1 | D69: 14000 | E69: 14000 | H69: 0
B70: אופנים עם משענת | C70: 1 | D70: 10500 | E70: 10500 | H70: 0
B71: אופני ידיים ורגליים מתכווננים | C71: 1 | D71: 27000 | E71: 27000 | H71: 0
B72: הליכון חשמלי | C72: 1 | D72: 23500 | E72: 23500 | H72: 0
B73: מתקן נשיאה | C73: 1 | D73: 14500 | E73: 14500 | H73: 0
B74: גומיות, כדורי כח ומשקוליות תקציב כולל | C74: 1 | D74: 1600 | E74: 1600 | H74: 0
B75: תלת אופן גדול | C75: 1 | D75: 12000 | E75: 12000 | H75: 0
B76: קסדות בגדלים ובצבעים שונים- תקציב כולל | C76: 1 | D76: 1700 | E76: 1700 | H76: 0
B77: תלת אופן קטן | C77: 1 | D77: 8500 | E77: 8500 | H77: 0
B78: תלת אופן רגיל | C78: 1 | D78: 400 | E78: 400 | H78: 0
B79: סה"כ מכשירים | E79: =SUM(E65:E78) -> 129210 | H79: =SUM(H65:H78) -> 0 | I79: =B79 -> סה"כ מכשירים | K79: =B79 -> סה"כ מכשירים | N79: =SUM(N65:N78) -> 0
B80: סה"כ ציוד פיזותרפיה כולל מע"מ | E80: =E15+E19+E26+E39+E46+E63+E79 -> 445850 | H80: =H15+H19+H26+H39+H46+H63+H79 -> 0 | I80: =B80 -> סה"כ ציוד פיזותרפיה כולל מע"מ | K80: =B80 -> סה"כ ציוד פיזותרפיה כולל מע"מ | N80: =N15+N19+N26+N39+N46+N63+N79 -> 0

Sheet ט. ציוד טיפולי-שיקומי
B1: ='ב. תוכן עניינים'!C22 -> ציוד טיפולי שיקומי | G1: שלב הגשת הבקשה: | K1: שלב הדיווח על ההוצאות:
B2: שם המסגרת : | C2: ='ג. שאלון למילוי מגיש הבקשה'!G24 -> 0 | G2: עליכם למלא גיליון ג' בטרם מילוי הגיליונות האחרים. | K2: לאחר אישור הבקשה יוחזר הגיליון עם הפריטים המאושרים
B3: סוג המסגרת : | C3: ='ג. שאלון למילוי מגיש הבקשה'!G26 -> נא לבחור מתוך הרשימה | G3: גיליונות ד' עד י"ב עליכם למלא רק עמודות הצבועות בירוק | K3: גיליונות ד' עד י"ב עליכם למלא רק עמודות הצבועות בכתום | N3: הצבועות בוורוד
B4: מספר האנשים שעבורם מיועד הפרויקט : | C4: ='ג. שאלון למילוי מגיש הבקשה'!G42 -> 0 | G4: אין לגעת בתאים האחרים- תאים אלו יהיו נעולים | K4: אין לגעת בתאים האחרים- תאים אלו יהיו נעולים
B5: תקן | G5: בקשת הגוף | K5: דיווח לתשלום לאחר ביצוע
B6: פריטים | C6: כמות תקן | D6: עלות ליחידה כולל מע"מ | E6: סך עלות כולל מע"מ | G6: כמות מבוקשת | H6: תקציב מבוקש | I6: הערות הגוף | K6: הפריט שנרכש | L6: מס' חשבונית מס | M6: תאריך חשבונית מס | N6: סכום כולל מע"מ
B7: מיטה סיעודית כולל מזרן רגיל | C7: 1 | D7: 7500 | E7: =D7*C7 -> 7500 | H7: =G7*D7 -> 0
B8: מזרן אויר דינאמי (מזרן נגד פצעי לחץ) | C8: 1 | D8: 5500 | E8: =D8*C8 -> 5500 | H8: 0
B9: כיסאות רחצה- סטנדרטי | C9: 1 | D9: 1690 | E9: 1690 | H9: 0
B10: כיסאות רחצה- טילט | C10: 1 | D10: 4850 | E10: 4850 | H10: 0
B11: כיסאות רחצה | C11: 1 | D11: 2150 | E11: 2150 | H11: 0
B12: אלונקת רחצה | C12: 1 | D12: 15500 | E12: 15500 | H12: 0
B13: מיטת החתלה כולל מזרן | C13: 1 | D13: 6500 | E13: 6500 | H13: 0
B14: כיסאות שירותים נייח | C14: 1 | D14: 341 | E14: 341 | H14: 0
B15: מאחזי יד (סכום גלובלי) | C15: 1 | D15: 500 | E15: 500 | H15: 0
B16: הגבהות לאסלה עם ידיות | C16: 1 | D16: 680 | E16: 680 | H16: 0
B17: סה"כ ציוד טיפולי שיקומי כולל מע"מ | E17: =SUM(E7:E16) -> 45211 | H17: =SUM(H7:H16) -> 0 | I17: =B17 -> סה"כ ציוד טיפולי שיקומי כולל מע"מ | K17: =B17 -> סה"כ ציוד טיפולי שיקומי כולל מע"מ | N17: =SUM(N7:N16) -> 0

Sheet י. מטבח מבשל
B1: ='ב. תוכן עניינים'!C23 -> ציוד מטבח מבשל | G1: שלב הגשת הבקשה: | K1: שלב הדיווח על ההוצאות:
B2: שם המסגרת : | C2: ='ג. שאלון למילוי מגיש הבקשה'!G24 -> 0 | G2: עליכם למלא גיליון ג' בטרם מילוי הגיליונות האחרים. | K2: לאחר אישור הבקשה יוחזר הגיליון עם הפריטים המאושרים | L2: לאחר אישור הבקשה יוחזר הגיליון עם הפריטים המאושרים | M2: לאחר אישור הבקשה יוחזר הגיליון עם הפריטים המאושרים
B3: סוג המסגרת : | C3: ='ג. שאלון למילוי מגיש הבקשה'!G26 -> נא לבחור מתוך הרשימה | G3: גיליונות ד' עד י"ב עליכם למלא רק עמודות הצבועות בירוק | K3: גיליונות ד' עד י"ב עליכם למלא רק עמודות הצבועות בכתום | N3: צבועות בוורוד
B4: מספר האנשים שעבורם מיועד הפרויקט : | C4: ='ג. שאלון למילוי מגיש הבקשה'!G42 -> 0 | G4: אין לגעת בתאים האחרים- תאים אלו יהיו נעולים | K4: אין לגעת בתאים האחרים- תאים אלו יהיו נעולים
B5: תקן | G5: בקשת הגוף | K5: דיווח לתשלום לאחר ביצוע
B6: פריטים | C6: כמות תקן | D6: עלות ליחידה כולל מע"מ | E6: סך עלות כולל מע"מ | G6: כמות מבוקשת | H6: תקציב מבוקש | I6: הערות הגוף | K6: הפריט שנרכש | L6: מס' חשבונית מס | M6: תאריך חשבונית מס | N6: סכום כולל מע"מ
B7: מקרר ארון חד רוחבי | C7: 3 | D7: =5500*1.17 -> 6435 | E7: =D7*C7 -> 19305 | H7: =G7*D7 -> 0
B8: מקפיא ארון חד רוחבי | C8: 2 | D8: =6500*1.17 -> 7605 | E8: 15210 | H8: 0
B9: מקרר דלפק | C9: 1 | D9: =5000*1.17 -> 5850 | E9: 5850 | H9: 0
B10: שולחן כניסה ויציאה למדיח כלים | C10: 1 | D10: =6100*1.17 -> 7137 | E10: 7137 | H10: 0
B11: מדיח כלים חצי תעשייתי / תעשייתי | C11: 1 | D11: 15000 | E11: 15000 | H11: 0
B12: מרכך מים 230 ליטר/שעה | C12: 1 | D12: =4000*1.17 -> 4680 | E12: 4680 | H12: 0
B13: כיריים חשמליות / גז 6 להבות | C13: 1 | D13: 10000 | E13: 10000 | H13: 0
B14: תנור קומביסטימר | C14: 1 | D14: 32000 | E14: 32000 | H14: 0
B15: מקסר / בלנדר - בייתי / תעשייתי | C15: 1 | D15: 3000 | E15: 3000 | H15: 0
B16: קוצץ ירקות שולחני | C16: 1 | D16: =5400*1.17 -> 6318 | E16: 6318 | H16: 0
B17: מעבד מזון תעשייתי | C17: 1 | D17: 7605 | E17: 7605 | H17: 0
B18: משטחי עבודה | C18: 4 | D18: =1500*1.17 -> 1755 | E18: 7020 | H18: 0
B19: שולחן כיור | C19: 3 | D19: =3900*1.17 -> 4563 | E19: 13689 | H19: 0
B20: מיקרוגל לעומס בינוני | C20: 1 | D20: =2400*1.17 -> 2808 | E20: 2808 | H20: 0
B21: מחבת מתהפך 50 ליטר | C21: 1 | D21: 19608 | E21: 19608 | H21: 0
B22: ארון חימום תחתון/ מעמד לתנור | C22: 1 | D22: =6000*1.17 -> 7020 | E22: 7020 | H22: 0
B23: סוללה עם מתז עליון על שולחן | C23: 2 | D23: =1500*1.17 -> 1755 | E23: 3510 | H23: 0
B24: ברז שולחני עם פיה מסתובבת לכיור עבודה | C24: 4 | D24: =400*1.17 -> 468 | E24: =D24*C24 -> 1872 | H24: 0
B25: מדף עליון כפול | C25: 4 | D25: =1650*1.17 -> 1930.5 | E25: 7722 | H25: 0
B26: מתלה ייבוש לצלחות עם מדף לספלים | C26: 2 | D26: =1000*1.17 -> 1170 | E26: 2340 | H26: 0
B27: עגלת עבודה | C27: 2 | D27: 1521 | E27: 3042 | H27: 0
B28: עגלה עם מיכל אשפה 80 ליטר | C28: 3 | D28: =590*1.17 -> 690.3 | E28: 2070.9 | H28: 0
B29: עגלת חימום / קרור | C29: 2 | D29: 15000 | E29: =D29*C29 -> 30000 | H29: 0
B30: מיחם אוטומטי 25 ליטר | C30: 1 | D30: 4500 | E30: =D30*C30 -> 4500 | H30: 0
B31: כלי מטבח | C31: 1 | D31: 10000 | E31: =D31*C31 -> 10000 | H31: 0
B32: ארון אחסון יבש | C32: 2 | D32: 3700 | E32: 7400 | H32: 0
B33: סה"כ ציוד מטבח מבשל - כולל מע"מ | E33: =SUM(E7:E32) -> 248706.9 | H33: =SUM(H7:H32) -> 0 | I33: =B33 -> סה"כ ציוד מטבח מבשל - כולל מע"מ | K33: =B33 -> סה"כ ציוד מטבח מבשל - כולל מע"מ | N33: =SUM(N7:N32) -> 0

Sheet יא. ציוד צוות
B1: ='ב. תוכן עניינים'!C24 -> ציוד לצוות | G1: שלב הגשת הבקשה: | K1: שלב הדיווח על ההוצאות:
B2: שם המסגרת : | C2: ='ג. שאלון למילוי מגיש הבקשה'!G24 -> 0 | G2: עליכם למלא גיליון ג' בטרם מילוי הגיליונות האחרים. | K2: לאחר אישור הבקשה יוחזר הגיליון עם הפריטים המאושרים
B3: : מס' אנשי צוות | C3: =$C$37 -> 0 | G3: גיליונות ד' עד י"ב עליכם למלא רק עמודות הצבועות בירוק | K3: גליונות ד'-י"ב עליכם למלא רק בעמודות הצבועות בוורוד
G4: אין לגעת בתאים האחרים- תאים אלו יהיו נעולים | K4: אין לגעת בתאים האחרים- תאים אלו יהיו נעולים
B5: תקן | G5: בקשת הגוף | K5: דיווח לתשלום לאחר ביצוע
B6: פריטים | C6: כמות תקן | D6: עלות ליחידה כולל מע"מ | E6: סך עלות כולל מע"מ | G6: כמות מבוקשת | H6: תקציב מבוקש | I6: הערות הגוף | K6: הפריט שנרכש | L6: מס' חשבונית מס | M6: תאריך חשבונית מס | N6: סכום כולל מע"מ
B7: כיסא אישי | C7: =$C$3 -> 0 | D7: 500 | E7: =D7*C7 -> 0 | H7: =G7*D7 -> 0
B8: שולחן מגירה | C8: =$C$3 -> 0 | D8: 1500 | E8: 0 | H8: 0
B9: עמדת מחשב | C9: =$C$3 -> 0 | D9: 500 | E9: 0 | H9: 0
B10: מחשב+תוכנות | C10: =$C$3 -> 0 | D10: 3000 | E10: 0 | H10: 0
B11: כיסא אורחים | C11: =$C$3 -> 0 | D11: 350 | E11: 0 | H11: 0
B12: ארון | C12: =ROUNDUP($C$3/4,0) -> 0 | D12: 2000 | E12: 0 | H12: 0
B13: ציוד תקשורת ומולטימדיה | C13: =ROUNDUP($C$3*0.3,0) -> 0 | D13: 750 | E13: 0 | H13: 0
B14: אביזרי עיצוב | C14: 1 | D14: 2000 | E14: 2000 | H14: 0
B15: סה"כ ציוד צוות כולל מע"מ | E15: =SUM(E7:E14) -> 2000 | H15: =SUM(H7:H14) -> 0 | I15: =B15 -> סה"כ ציוד צוות כולל מע"מ | K15: =B15 -> סה"כ ציוד צוות כולל מע"מ | N15: =SUM(N7:N14) -> 0
B17: טבלת עזר לאנשי הצוות
B18: פירוט תפקיד | C18: מס' אנשים
B37: סה"כ אנשי צוות במסגרת | C37: =SUM(C19:C36) -> 0

Sheet יב. ציוד נוסף
B1: ='ב. תוכן עניינים'!C25 -> ציוד נוסף | K1: שלב הגשת הבקשה: | O1: שלב הדיווח על ההוצאות:
B2: ציוד נוסף/משלים ניתן להכניס בטבלה זאת יש להציג 2 הצעות מחיר ולציין בטורים K-L את ההצעה המועדפת. | K2: עליכם למלא גיליון ג' בטרם מילוי הגיליונות האחרים. | O2: לאחר אישור הבקשה יוחזר הגיליון עם הפריטים המאושרים
B3: שם המסגרת | D3: ='ג. שאלון למילוי מגיש הבקשה'!G24 -> 0 | K3: גיליונות ד' עד י"ב עליכם למלא רק עמודות הצבועות בירוק | O3: גיליונות ד' עד י"ב עליכם למלא רק עמודות הצבועות בוורוד
B4: סוג המסגרת | D4: ='ג. שאלון למילוי מגיש הבקשה'!G26 -> נא לבחור מתוך הרשימה | K4: אין לגעת בתאים האחרים- תאים אלו יהיו נעולים | O4: אין לגעת בתאים האחרים- תאים אלו יהיו נעולים
B5: מספר האנשים שעבורם מיועד הפרויקט | D5: ='ג. שאלון למילוי מגיש הבקשה'!G42 -> 0
B6: ציוד נוסף | E6: הצעה ראשונה | H6: הצעה שניה | K6: הצעה מועדפת | O6: דיווח לתשלום לאחר ביצוע
B7: תאור הציוד | C7: יעוד הציוד | D7: כמות מבוקשת | E7: הספק 1 | F7: מחיר ליחידה | G7: סכום | H7: שם הספק 2 | I7: מחיר ליחידה | J7: סכום | K7: הספק המועדף | L7: מחיר ליחידה | M7: סכום | O7: הפריט שנרכש | P7: מס' חשבונית מס | Q7: תאריך חשבונית מס | R7: סכום כולל מע"מ
G8: =D8*F8 -> 0 | J8: =$D8*I8 -> 0 | M8: =D8*L8 -> 0
G9: 0 | J9: =$D9*I9 -> 0 | M9: =D9*L9 -> 0
G10: 0 | J10: 0 | M10: 0
G11: 0 | J11: 0 | M11: 0
G12: 0 | J12: 0 | M12: 0
G13: 0 | J13: 0 | M13: 0
G14: 0 | J14: 0 | M14: 0
G15: 0 | J15: 0 | M15: 0
G16: 0 | J16: 0 | M16: 0
G17: 0 | J17: 0 | M17: 0
G18: 0 | J18: 0 | M18: 0
G19: 0 | J19: 0 | M19: 0
G20: 0 | J20: 0 | M20: 0
G21: 0 | J21: 0 | M21: 0
G22: 0 | J22: 0 | M22: 0
G23: 0 | J23: 0 | M23: 0
G24: 0 | J24: 0 | M24: 0
G25: 0 | J25: 0 | M25: 0
G26: 0 | J26: 0 | M26: 0
G27: 0 | J27: 0 | M27: 0
G28: 0 | J28: 0 | M28: 0
B29: סה"כ ציוד נוסף כולל מע"מ | G29: =SUM(G8:G28) -> 0 | J29: =SUM(J8:J28) -> 0 | M29: =SUM(M8:M28) -> 0 | O29: =B29 -> סה"כ ציוד נוסף כולל מע"מ | R29: =SUM(R8:R28) -> 0

Sheet יג. סיכום
B8: תקן ציוד למרכזי יום טיפוליים סיעודיים ו/או תעסוקה
B9: ציוד פרא רפואי, חדר סנוזלן, ציוד למטבח מבשל וציוד לצוות.
B11: דוח ביצוע מסכם
B13: הנחיות לקבלת תשלום :
B14: יש למלא את ההוצאות בפועל בכל אחד מהגיליונות הרלבנטיים הקודמים. הסכומים יעודכנו אוטומטית בגיליון זה.
B15: יש לשלוח את הקובץ הזה במלואו לדוא"ל המצויין מטה.
B16: יש להדפיס עמוד זה ולהחתים כנדרש.
B17: בנוסף יש לצרף :
B18: צילומי חשבוניות מס / קבלות או כרטסת חתומה ע"י רו"ח של ארגון מפעיל/ גזבר הרשות
B19: את הדיווחים לתשלום ואת הקובץ במלואו יש לשלוח לדוא"ל : limor@kshalem.org.il
B20: באחריות השולח לוודא כי המסמכים הגיעו ליעדם.
B22: ='ג. שאלון למילוי מגיש הבקשה'!C24 -> שם המסגרת | C22: ='ג. שאלון למילוי מגיש הבקשה'!G24 -> 00:00:00
B23: ='ג. שאלון למילוי מגיש הבקשה'!C26 -> סוג המסגרת | C23: ='ג. שאלון למילוי מגיש הבקשה'!G26 -> נא לבחור מתוך הרשימה
B24: ='ג. שאלון למילוי מגיש הבקשה'!C42 -> מספר האנשים שעבורם מיועד הפרויקט | C24: ='ג. שאלון למילוי מגיש הבקשה'!G42 -> 0
B26: ציוד עפ"י נושאים | C26: סכום מבוקש | D26: סכום שבוצע בפועל
B27: ='ב. תוכן עניינים'!C17 -> ריפוי בעיסוק | C27: ='ד. ריפוי בעיסוק'!H51 -> 0 | D27: ='ד. ריפוי בעיסוק'!N51 -> 0
B28: ='ב. תוכן עניינים'!C18 -> קלינאות תקשורת | C28: ='ה. קלינאות תקשורת'!H33 -> 0 | D28: ='ה. קלינאות תקשורת'!N33 -> 0
B29: ='ב. תוכן עניינים'!C19 -> חדר סנוזלן | C29: ='ו. סנוזלן'!H23 -> 0 | D29: ='ו. סנוזלן'!N23 -> 0
B30: ='ב. תוכן עניינים'!C20 -> מתקני חצר | C30: ='ז. מתקני חצר '!I27 -> 0 | D30: ='ז. מתקני חצר '!O27 -> 0
B31: ='ב. תוכן עניינים'!C21 -> פיזיותרפיה | C31: ='ח. פיזיותרפיה'!H80 -> 0 | D31: ='ח. פיזיותרפיה'!N80 -> 0
B32: ='ב. תוכן עניינים'!C22 -> ציוד טיפולי שיקומי | C32: ='ט. ציוד טיפולי-שיקומי'!H17 -> 0 | D32: ='ט. ציוד טיפולי-שיקומי'!N17 -> 0
B33: ='ב. תוכן עניינים'!C23 -> ציוד מטבח מבשל | C33: ='י. מטבח מבשל'!H33 -> 0 | D33: ='י. מטבח מבשל'!N33 -> 0
B34: ='ב. תוכן עניינים'!C24 -> ציוד לצוות | C34: ='יא. ציוד צוות'!H15 -> 0 | D34: ='יא. ציוד צוות'!N15 -> 0
B35: ='ב. תוכן עניינים'!C25 -> ציוד נוסף | C35: ='יב. ציוד נוסף'!M29 -> 0 | D35: ='יב. ציוד נוסף'!R29 -> 0
B36: סה"כ בקשה כולל מע"מ | C36: =SUM(C27:C35) -> 0 | D36: =SUM(D27:D35) -> 0
B38: מספר פרוייקט קרן שלם
B40: חתימה וחותמת גזבר/רו"ח
B42: תאריך

Sheet סיכום מפורט (לשימוש משרדי)
A1: ='ב. תוכן עניינים'!C27 -> סיכום מפורט (לשימוש משרדי)
A2: מספר מק"ט | B2: ='יג. סיכום'!C38 -> 0
A3: ='ג. שאלון למילוי מגיש הבקשה'!C24 -> שם המסגרת | B3: ='ג. שאלון למילוי מגיש הבקשה'!G24 -> 00:00:00
A4: ='ג. שאלון למילוי מגיש הבקשה'!C26 -> סוג המסגרת | B4: ='ג. שאלון למילוי מגיש הבקשה'!G26 -> נא לבחור מתוך הרשימה
A5: ='ג. שאלון למילוי מגיש הבקשה'!C42 -> מספר האנשים שעבורם מיועד הפרויקט | B5: ='ג. שאלון למילוי מגיש הבקשה'!G42 -> 0
B6: בקשה / אישור | E6: דיווח לתשלום
A7: תיאור | B7: כמות מבוקשת | C7: תקציב מבוקש לקבוצה | E7: הפריט שנרכש | F7: מס' חשבונית מס | G7: תאריך חשבונית מס | H7: סכום כולל מע"מ
A8: ='יג. סיכום'!B27 -> ריפוי בעיסוק | E8: =A8 -> ריפוי בעיסוק
A9: ='ד. ריפוי בעיסוק'!B9 -> מזרונים טיפוליים | B9: ='ד. ריפוי בעיסוק'!G9 -> 0 | C9: ='ד. ריפוי בעיסוק'!H9 -> 0 | E9: ='ד. ריפוי בעיסוק'!K9 -> 0 | F9: ='ד. ריפוי בעיסוק'!L9 -> 0 | G9: =IF(F9=0,"",'ד. ריפוי בעיסוק'!M9) ->  | H9: ='ד. ריפוי בעיסוק'!N9 -> 0
A10: ='ד. ריפוי בעיסוק'!B10 -> ארון אחסון | B10: ='ד. ריפוי בעיסוק'!G10 -> 0 | C10: ='ד. ריפוי בעיסוק'!H10 -> 0 | E10: ='ד. ריפוי בעיסוק'!K10 -> 0 | F10: ='ד. ריפוי בעיסוק'!L10 -> 0 | G10: =IF(F10=0,"",'ד. ריפוי בעיסוק'!M10) ->  | H10: ='ד. ריפוי בעיסוק'!N10 -> 0
A11: ='ד. ריפוי בעיסוק'!B11 -> מדף אחסון לציוד גדול תלוי | B11: ='ד. ריפוי בעיסוק'!G11 -> 0 | C11: ='ד. ריפוי בעיסוק'!H11 -> 0 | E11: ='ד. ריפוי בעיסוק'!K11 -> 0 | F11: ='ד. ריפוי בעיסוק'!L11 -> 0 | G11: =IF(F11=0,"",'ד. ריפוי בעיסוק'!M11) ->  | H11: ='ד. ריפוי בעיסוק'!N11 -> 0
A12: ='ד. ריפוי בעיסוק'!B12 -> כסא מתכוונן | B12: ='ד. ריפוי בעיסוק'!G12 -> 0 | C12: ='ד. ריפוי בעיסוק'!H12 -> 0 | E12: ='ד. ריפוי בעיסוק'!K12 -> 0 | F12: ='ד. ריפוי בעיסוק'!L12 -> 0 | G12: =IF(F12=0,"",'ד. ריפוי בעיסוק'!M12) ->  | H12: ='ד. ריפוי בעיסוק'!N12 -> 0
A13: ='ד. ריפוי בעיסוק'!B13 -> כסא מטפל | B13: ='ד. ריפוי בעיסוק'!G13 -> 0 | C13: ='ד. ריפוי בעיסוק'!H13 -> 0 | E13: ='ד. ריפוי בעיסוק'!K13 -> 0 | F13: ='ד. ריפוי בעיסוק'!L13 -> 0 | G13: =IF(F13=0,"",'ד. ריפוי בעיסוק'!M13) ->  | H13: ='ד. ריפוי בעיסוק'!N13 -> 0
A14: ='ד. ריפוי בעיסוק'!B14 -> לוח מחיק | B14: ='ד. ריפוי בעיסוק'!G14 -> 0 | C14: ='ד. ריפוי בעיסוק'!H14 -> 0 | E14: ='ד. ריפוי בעיסוק'!K14 -> 0 | F14: ='ד. ריפוי בעיסוק'!L14 -> 0 | G14: =IF(F14=0,"",'ד. ריפוי בעיסוק'!M14) ->  | H14: ='ד. ריפוי בעיסוק'!N14 -> 0
A15: ='ד. ריפוי בעיסוק'!B15 -> מראה קבועה ווילון | B15: ='ד. ריפוי בעיסוק'!G15 -> 0 | C15: ='ד. ריפוי בעיסוק'!H15 -> 0 | E15: ='ד. ריפוי בעיסוק'!K15 -> 0 | F15: ='ד. ריפוי בעיסוק'!L15 -> 0 | G15: =IF(F15=0,"",'ד. ריפוי בעיסוק'!M15) ->  | H15: ='ד. ריפוי בעיסוק'!N15 -> 0
A16: ='ד. ריפוי בעיסוק'!B16 -> שולחן מתכוונן חשמלי | B16: ='ד. ריפוי בעיסוק'!G16 -> 0 | C16: ='ד. ריפוי בעיסוק'!H16 -> 0 | E16: ='ד. ריפוי בעיסוק'!K16 -> 0 | F16: ='ד. ריפוי בעיסוק'!L16 -> 0 | G16: =IF(F16=0,"",'ד. ריפוי בעיסוק'!M16) ->  | H16: ='ד. ריפוי בעיסוק'!N16 -> 0
A17: ='ד. ריפוי בעיסוק'!B19 -> נקודת תליה בתקרה, כולל התקנה | B17: ='ד. ריפוי בעיסוק'!G19 -> 0 | C17: ='ד. ריפוי בעיסוק'!H19 -> 0 | E17: ='ד. ריפוי בעיסוק'!K19 -> 0 | F17: ='ד. ריפוי בעיסוק'!L19 -> 0 | G17: =IF(F17=0,"",'ד. ריפוי בעיסוק'!M19) ->  | H17: ='ד. ריפוי בעיסוק'!N19 -> 0
A18: ='ד. ריפוי בעיסוק'!B20 -> סקוטר למשקל של מבוגרים | B18: ='ד. ריפוי בעיסוק'!G20 -> 0 | C18: ='ד. ריפוי בעיסוק'!H20 -> 0 | E18: ='ד. ריפוי בעיסוק'!K20 -> 0 | F18: ='ד. ריפוי בעיסוק'!L20 -> 0 | G18: =IF(F18=0,"",'ד. ריפוי בעיסוק'!M20) ->  | H18: ='ד. ריפוי בעיסוק'!N20 -> 0
A19: ='ד. ריפוי בעיסוק'!B21 -> חבית טיפולית | B19: ='ד. ריפוי בעיסוק'!G21 -> 0 | C19: ='ד. ריפוי בעיסוק'!H21 -> 0 | E19: ='ד. ריפוי בעיסוק'!K21 -> 0 | F19: ='ד. ריפוי בעיסוק'!L21 -> 0 | G19: =IF(F19=0,"",'ד. ריפוי בעיסוק'!M21) ->  | H19: ='ד. ריפוי בעיסוק'!N21 -> 0
A20: ='ד. ריפוי בעיסוק'!B22 -> סט חמישה ספסלים | B20: ='ד. ריפוי בעיסוק'!G22 -> 0 | C20: ='ד. ריפוי בעיסוק'!H22 -> 0 | E20: ='ד. ריפוי בעיסוק'!K22 -> 0 | F20: ='ד. ריפוי בעיסוק'!L22 -> 0 | G20: =IF(F20=0,"",'ד. ריפוי בעיסוק'!M22) ->  | H20: ='ד. ריפוי בעיסוק'!N22 -> 0
A21: ='ד. ריפוי בעיסוק'!B23 -> ערסל בד טיפולי | B21: ='ד. ריפוי בעיסוק'!G23 -> 0 | C21: ='ד. ריפוי בעיסוק'!H23 -> 0 | E21: ='ד. ריפוי בעיסוק'!K23 -> 0 | F21: ='ד. ריפוי בעיסוק'!L23 -> 0 | G21: =IF(F21=0,"",'ד. ריפוי בעיסוק'!M23) ->  | H21: ='ד. ריפוי בעיסוק'!N23 -> 0
A22: ='ד. ריפוי בעיסוק'!B24 -> צלחת וסטיבולרית לבוגרים | B22: ='ד. ריפוי בעיסוק'!G24 -> 0 | C22: ='ד. ריפוי בעיסוק'!H24 -> 0 | E22: ='ד. ריפוי בעיסוק'!K24 -> 0 | F22: ='ד. ריפוי בעיסוק'!L24 -> 0 | G22: =IF(F22=0,"",'ד. ריפוי בעיסוק'!M24) ->  | H22: ='ד. ריפוי בעיסוק'!N24 -> 0
A23: ='ד. ריפוי בעיסוק'!B25 -> כדורים (סכום גלובלי) | B23: ='ד. ריפוי בעיסוק'!G25 -> 0 | C23: ='ד. ריפוי בעיסוק'!H25 -> 0 | E23: ='ד. ריפוי בעיסוק'!K25 -> 0 | F23: ='ד. ריפוי בעיסוק'!L25 -> 0 | G23: =IF(F23=0,"",'ד. ריפוי בעיסוק'!M25) ->  | H23: ='ד. ריפוי בעיסוק'!N25 -> 0
A24: ='ד. ריפוי בעיסוק'!B26 -> גלילים בגדלים שונים (סכום גלובלי) | B24: ='ד. ריפוי בעיסוק'!G26 -> 0 | C24: ='ד. ריפוי בעיסוק'!H26 -> 0 | E24: ='ד. ריפוי בעיסוק'!K26 -> 0 | F24: ='ד. ריפוי בעיסוק'!L26 -> 0 | G24: =IF(F24=0,"",'ד. ריפוי בעיסוק'!M26) ->  | H24: ='ד. ריפוי בעיסוק'!N26 -> 0
A25: ='ד. ריפוי בעיסוק'!B27 -> וסט נאופרן | B25: ='ד. ריפוי בעיסוק'!G27 -> 0 | C25: ='ד. ריפוי בעיסוק'!H27 -> 0 | E25: ='ד. ריפוי בעיסוק'!K27 -> 0 | F25: ='ד. ריפוי בעיסוק'!L27 -> 0 | G25: =IF(F25=0,"",'ד. ריפוי בעיסוק'!M27) ->  | H25: ='ד. ריפוי בעיסוק'!N27 -> 0
A26: ='ד. ריפוי בעיסוק'!B28 -> משחקי גריה שונים (סכום גלובלי) | B26: ='ד. ריפוי בעיסוק'!G28 -> 0 | C26: ='ד. ריפוי בעיסוק'!H28 -> 0 | E26: ='ד. ריפוי בעיסוק'!K28 -> 0 | F26: ='ד. ריפוי בעיסוק'!L28 -> 0 | G26: =IF(F26=0,"",'ד. ריפוי בעיסוק'!M28) ->  | H26: ='ד. ריפוי בעיסוק'!N28 -> 0
A27: ='ד. ריפוי בעיסוק'!B29 -> עזרים לטיפול קבוצתי (טבעות, מטפחות, כדורים, מצנח וכד') (סכום גלובלי) | B27: ='ד. ריפוי בעיסוק'!G29 -> 0 | C27: ='ד. ריפוי בעיסוק'!H29 -> 0 | E27: ='ד. ריפוי בעיסוק'!K29 -> 0 | F27: ='ד. ריפוי בעיסוק'!L29 -> 0 | G27: =IF(F27=0,"",'ד. ריפוי בעיסוק'!M29) ->  | H27: ='ד. ריפוי בעיסוק'!N29 -> 0
A28: ='ד. ריפוי בעיסוק'!B30 -> משחקי מרחב, בנייה והרכבה (סכום גלובלי) | B28: ='ד. ריפוי בעיסוק'!G30 -> 0 | C28: ='ד. ריפוי בעיסוק'!H30 -> 0 | E28: ='ד. ריפוי בעיסוק'!K30 -> 0 | F28: ='ד. ריפוי בעיסוק'!L30 -> 0 | G28: =IF(F28=0,"",'ד. ריפוי בעיסוק'!M30) ->  | H28: ='ד. ריפוי בעיסוק'!N30 -> 0
A29: ='ד. ריפוי בעיסוק'!B31 -> פאזלים ומשחקי תפיסה (סכום גלובלי) | B29: ='ד. ריפוי בעיסוק'!G31 -> 0 | C29: ='ד. ריפוי בעיסוק'!H31 -> 0 | E29: ='ד. ריפוי בעיסוק'!K31 -> 0 | F29: ='ד. ריפוי בעיסוק'!L31 -> 0 | G29: =IF(F29=0,"",'ד. ריפוי בעיסוק'!M31) ->  | H29: ='ד. ריפוי בעיסוק'!N31 -> 0
A30: ='ד. ריפוי בעיסוק'!B32 -> אביזרי ADL מותאמים (סכום גלובלי) | B30: ='ד. ריפוי בעיסוק'!G32 -> 0 | C30: ='ד. ריפוי בעיסוק'!H32 -> 0 | E30: ='ד. ריפוי בעיסוק'!K32 -> 0 | F30: ='ד. ריפוי בעיסוק'!L32 -> 0 | G30: =IF(F30=0,"",'ד. ריפוי בעיסוק'!M32) ->  | H30: ='ד. ריפוי בעיסוק'!N32 -> 0
A31: ='ד. ריפוי בעיסוק'!B33 -> ציוד להכנת סדי ידיים | B31: ='ד. ריפוי בעיסוק'!G33 -> 0 | C31: ='ד. ריפוי בעיסוק'!H33 -> 0 | E31: ='ד. ריפוי בעיסוק'!K33 -> 0 | F31: ='ד. ריפוי בעיסוק'!L33 -> 0 | G31: =IF(F31=0,"",'ד. ריפוי בעיסוק'!M33) ->  | H31: ='ד. ריפוי בעיסוק'!N33 -> 0
A32: ='ד. ריפוי בעיסוק'!B36 -> מחשב נייח/נייד עם מסך מגע | B32: ='ד. ריפוי בעיסוק'!G36 -> 0 | C32: ='ד. ריפוי בעיסוק'!H36 -> 0 | E32: ='ד. ריפוי בעיסוק'!K36 -> 0 | F32: ='ד. ריפוי בעיסוק'!L36 -> 0 | G32: =IF(F32=0,"",'ד. ריפוי בעיסוק'!M36) ->  | H32: ='ד. ריפוי בעיסוק'!N36 -> 0
A33: ='ד. ריפוי בעיסוק'!B37 -> מדפסת | B33: ='ד. ריפוי בעיסוק'!G37 -> 0 | C33: ='ד. ריפוי בעיסוק'!H37 -> 0 | E33: ='ד. ריפוי בעיסוק'!K37 -> 0 | F33: ='ד. ריפוי בעיסוק'!L37 -> 0 | G33: =IF(F33=0,"",'ד. ריפוי בעיסוק'!M37) ->  | H33: ='ד. ריפוי בעיסוק'!N37 -> 0
A34: ='ד. ריפוי בעיסוק'!B38 -> אייפד (1 ל 5 אנשים) Ipad 10.2" 128GB WIFI | B34: ='ד. ריפוי בעיסוק'!G38 -> 0 | C34: ='ד. ריפוי בעיסוק'!H38 -> 0 | E34: ='ד. ריפוי בעיסוק'!K38 -> 0 | F34: ='ד. ריפוי בעיסוק'!L38 -> 0 | G34: =IF(F34=0,"",'ד. ריפוי בעיסוק'!M38) ->  | H34: ='ד. ריפוי בעיסוק'!N38 -> 0
A35: ='ד. ריפוי בעיסוק'!B39 -> תוכנות לאייפד | B35: ='ד. ריפוי בעיסוק'!G39 -> 0 | C35: ='ד. ריפוי בעיסוק'!H39 -> 0 | E35: ='ד. ריפוי בעיסוק'!K39 -> 0 | F35: ='ד. ריפוי בעיסוק'!L39 -> 0 | G35: =IF(F35=0,"",'ד. ריפוי בעיסוק'!M39) ->  | H35: ='ד. ריפוי בעיסוק'!N39 -> 0
A36: ='ד. ריפוי בעיסוק'!B40 -> מגן לאייפד + מדבקת זכוכית | B36: ='ד. ריפוי בעיסוק'!G40 -> 0 | C36: ='ד. ריפוי בעיסוק'!H40 -> 0 | E36: ='ד. ריפוי בעיסוק'!K40 -> 0 | F36: ='ד. ריפוי בעיסוק'!L40 -> 0 | G36: =IF(F36=0,"",'ד. ריפוי בעיסוק'!M40) ->  | H36: ='ד. ריפוי בעיסוק'!N40 -> 0
A37: ='ד. ריפוי בעיסוק'!B41 -> Apple tv | B37: ='ד. ריפוי בעיסוק'!G41 -> 0 | C37: ='ד. ריפוי בעיסוק'!H41 -> 0 | E37: ='ד. ריפוי בעיסוק'!K41 -> 0 | F37: ='ד. ריפוי בעיסוק'!L41 -> 0 | G37: =IF(F37=0,"",'ד. ריפוי בעיסוק'!M41) ->  | H37: ='ד. ריפוי בעיסוק'!N41 -> 0
A38: ='ד. ריפוי בעיסוק'!B42 -> מסך הקרנה נגלל | B38: ='ד. ריפוי בעיסוק'!G42 -> 0 | C38: ='ד. ריפוי בעיסוק'!H42 -> 0 | E38: ='ד. ריפוי בעיסוק'!K42 -> 0 | F38: ='ד. ריפוי בעיסוק'!L42 -> 0 | G38: =IF(F38=0,"",'ד. ריפוי בעיסוק'!M42) ->  | H38: ='ד. ריפוי בעיסוק'!N42 -> 0
A39: ='ד. ריפוי בעיסוק'!B43 -> מסך מגע 65" לתלייה על קיר+ ארון + מחשב להפעלה, ניתן להשתמש גם בלוח חכם | B39: ='ד. ריפוי בעיסוק'!G43 -> 0 | C39: ='ד. ריפוי בעיסוק'!H43 -> 0 | E39: ='ד. ריפוי בעיסוק'!K43 -> 0 | F39: ='ד. ריפוי בעיסוק'!L43 -> 0 | G39: =IF(F39=0,"",'ד. ריפוי בעיסוק'!M43) ->  | H39: ='ד. ריפוי בעיסוק'!N43 -> 0
A40: ='ד. ריפוי בעיסוק'!B44 -> מערכת מציאות מדומה | B40: ='ד. ריפוי בעיסוק'!G44 -> 0 | C40: ='ד. ריפוי בעיסוק'!H44 -> 0 | E40: ='ד. ריפוי בעיסוק'!K44 -> 0 | F40: ='ד. ריפוי בעיסוק'!L44 -> 0 | G40: =IF(F40=0,"",'ד. ריפוי בעיסוק'!M44) ->  | H40: ='ד. ריפוי בעיסוק'!N44 -> 0
A41: ='ד. ריפוי בעיסוק'!B45 -> עכברים ייחודיים | B41: ='ד. ריפוי בעיסוק'!G45 -> 0 | C41: ='ד. ריפוי בעיסוק'!H45 -> 0 | E41: ='ד. ריפוי בעיסוק'!K45 -> 0 | F41: ='ד. ריפוי בעיסוק'!L45 -> 0 | G41: =IF(F41=0,"",'ד. ריפוי בעיסוק'!M45) ->  | H41: ='ד. ריפוי בעיסוק'!N45 -> 0
A42: ='ד. ריפוי בעיסוק'!B46 -> מקלדות ייחודיות | B42: ='ד. ריפוי בעיסוק'!G46 -> 0 | C42: ='ד. ריפוי בעיסוק'!H46 -> 0 | E42: ='ד. ריפוי בעיסוק'!K46 -> 0 | F42: ='ד. ריפוי בעיסוק'!L46 -> 0 | G42: =IF(F42=0,"",'ד. ריפוי בעיסוק'!M46) ->  | H42: ='ד. ריפוי בעיסוק'!N46 -> 0
A43: ='ד. ריפוי בעיסוק'!B47 -> מתגים ומתאמי מתגים | B43: ='ד. ריפוי בעיסוק'!G47 -> 0 | C43: ='ד. ריפוי בעיסוק'!H47 -> 0 | E43: ='ד. ריפוי בעיסוק'!K47 -> 0 | F43: ='ד. ריפוי בעיסוק'!L47 -> 0 | G43: =IF(F43=0,"",'ד. ריפוי בעיסוק'!M47) ->  | H43: ='ד. ריפוי בעיסוק'!N47 -> 0
A44: ='ד. ריפוי בעיסוק'!B48 -> זרועות למתגים ולטאבלט | B44: ='ד. ריפוי בעיסוק'!G48 -> 0 | C44: ='ד. ריפוי בעיסוק'!H48 -> 0 | E44: ='ד. ריפוי בעיסוק'!K48 -> 0 | F44: ='ד. ריפוי בעיסוק'!L48 -> 0 | G44: =IF(F44=0,"",'ד. ריפוי בעיסוק'!M48) ->  | H44: ='ד. ריפוי בעיסוק'!N48 -> 0
A45: ='ד. ריפוי בעיסוק'!B49 -> צעצועים מותאמים - סכום גלובלי | B45: ='ד. ריפוי בעיסוק'!G49 -> 0 | C45: ='ד. ריפוי בעיסוק'!H49 -> 0 | E45: ='ד. ריפוי בעיסוק'!K49 -> 0 | F45: ='ד. ריפוי בעיסוק'!L49 -> 0 | G45: =IF(F45=0,"",'ד. ריפוי בעיסוק'!M49) ->  | H45: ='ד. ריפוי בעיסוק'!N49 -> 0
A46: ='ד. ריפוי בעיסוק'!B51 -> סה"כ ציוד ריפוי בעיסוק כולל מע"מ | C46: =SUM(C9:C45) -> 0 | E46: =A46 -> סה"כ ציוד ריפוי בעיסוק כולל מע"מ | H46: =SUM(H9:H45) -> 0
A47: ='יג. סיכום'!B28 -> קלינאות תקשורת | E47: קלינאות תקשורת
A48: ='ה. קלינאות תקשורת'!B8 -> מחשב נייח /נייד | B48: ='ה. קלינאות תקשורת'!G8 -> 0 | C48: ='ה. קלינאות תקשורת'!H8 -> 0 | E48: ='ה. קלינאות תקשורת'!K8 -> 0 | F48: ='ה. קלינאות תקשורת'!L8 -> 0 | G48: =IF(F48=0,"",'ה. קלינאות תקשורת'!M8) ->  | H48: ='ה. קלינאות תקשורת'!N8 -> 0
A49: ='ה. קלינאות תקשורת'!B9 -> מדפסת משולבת עם יישומי סריקה וצילום, פלט צבעוני | B49: ='ה. קלינאות תקשורת'!G9 -> 0 | C49: ='ה. קלינאות תקשורת'!H9 -> 0 | E49: ='ה. קלינאות תקשורת'!K9 -> 0 | F49: ='ה. קלינאות תקשורת'!L9 -> 0 | G49: =IF(F49=0,"",'ה. קלינאות תקשורת'!M9) ->  | H49: ='ה. קלינאות תקשורת'!N9 -> 0
A50: ='ה. קלינאות תקשורת'!B10 -> מכשיר למינציה | B50: ='ה. קלינאות תקשורת'!G10 -> 0 | C50: ='ה. קלינאות תקשורת'!H10 -> 0 | E50: ='ה. קלינאות תקשורת'!K10 -> 0 | F50: ='ה. קלינאות תקשורת'!L10 -> 0 | G50: =IF(F50=0,"",'ה. קלינאות תקשורת'!M10) ->  | H50: ='ה. קלינאות תקשורת'!N10 -> 0
A51: ='ה. קלינאות תקשורת'!B11 -> מחשב לוח (אייפד/טאבלט) | B51: ='ה. קלינאות תקשורת'!G11 -> 0 | C51: ='ה. קלינאות תקשורת'!H11 -> 0 | E51: ='ה. קלינאות תקשורת'!K11 -> 0 | F51: ='ה. קלינאות תקשורת'!L11 -> 0 | G51: =IF(F51=0,"",'ה. קלינאות תקשורת'!M11) ->  | H51: ='ה. קלינאות תקשורת'!N11 -> 0
A52: ='ה. קלינאות תקשורת'!B12 -> אפליקציות למחשב לוח (אייפד/טאבלט) | B52: ='ה. קלינאות תקשורת'!G12 -> 0 | C52: ='ה. קלינאות תקשורת'!H12 -> 0 | E52: ='ה. קלינאות תקשורת'!K12 -> 0 | F52: ='ה. קלינאות תקשורת'!L12 -> 0 | G52: =IF(F52=0,"",'ה. קלינאות תקשורת'!M12) ->  | H52: ='ה. קלינאות תקשורת'!N12 -> 0
A53: ='ה. קלינאות תקשורת'!B15 -> פלטים קוליים (סכום גלובלי) | B53: ='ה. קלינאות תקשורת'!G15 -> 0 | C53: ='ה. קלינאות תקשורת'!H15 -> 0 | E53: ='ה. קלינאות תקשורת'!K15 -> 0 | F53: ='ה. קלינאות תקשורת'!L15 -> 0 | G53: =IF(F53=0,"",'ה. קלינאות תקשורת'!M15) ->  | H53: ='ה. קלינאות תקשורת'!N15 -> 0
A54: ='ה. קלינאות תקשורת'!B16 -> מתגים (סכום גלובלי) | B54: ='ה. קלינאות תקשורת'!G16 -> 0 | C54: ='ה. קלינאות תקשורת'!H16 -> 0 | E54: ='ה. קלינאות תקשורת'!K16 -> 0 | F54: ='ה. קלינאות תקשורת'!L16 -> 0 | G54: =IF(F54=0,"",'ה. קלינאות תקשורת'!M16) ->  | H54: ='ה. קלינאות תקשורת'!N16 -> 0
A55: ='ה. קלינאות תקשורת'!B17 -> אפליקציות לתקשורת תומכת חליפית (סכום גלובלי) | B55: ='ה. קלינאות תקשורת'!G17 -> 0 | C55: ='ה. קלינאות תקשורת'!H17 -> 0 | E55: ='ה. קלינאות תקשורת'!K17 -> 0 | F55: ='ה. קלינאות תקשורת'!L17 -> 0 | G55: =IF(F55=0,"",'ה. קלינאות תקשורת'!M17) ->  | H55: ='ה. קלינאות תקשורת'!N17 -> 0
A56: ='ה. קלינאות תקשורת'!B18 -> תוכנת גריד (סכום גלובלי) | B56: ='ה. קלינאות תקשורת'!G18 -> 0 | C56: ='ה. קלינאות תקשורת'!H18 -> 0 | E56: ='ה. קלינאות תקשורת'!K18 -> 0 | F56: ='ה. קלינאות תקשורת'!L18 -> 0 | G56: =IF(F56=0,"",'ה. קלינאות תקשורת'!M18) ->  | H56: ='ה. קלינאות תקשורת'!N18 -> 0
A57: ='ה. קלינאות תקשורת'!B21 -> ציוד טיפולי, ספרים, כרטיסיות ומשחקי שפה ותקשורת | B57: ='ה. קלינאות תקשורת'!G21 -> 0 | C57: ='ה. קלינאות תקשורת'!H21 -> 0 | E57: ='ה. קלינאות תקשורת'!K21 -> 0 | F57: ='ה. קלינאות תקשורת'!L21 -> 0 | G57: =IF(F57=0,"",'ה. קלינאות תקשורת'!M21) ->  | H57: ='ה. קלינאות תקשורת'!N21 -> 0
A58: ='ה. קלינאות תקשורת'!B22 -> תוכנות תקשורת לאי-פד כמו sounding board, book creator,choice boards, snap scene ועוד, בהתאם למאפייני האוכלוסיה | B58: ='ה. קלינאות תקשורת'!G22 -> 0 | C58: ='ה. קלינאות תקשורת'!H22 -> 0 | E58: ='ה. קלינאות תקשורת'!K22 -> 0 | F58: ='ה. קלינאות תקשורת'!L22 -> 0 | G58: =IF(F58=0,"",'ה. קלינאות תקשורת'!M22) ->  | H58: ='ה. קלינאות תקשורת'!N22 -> 0
A59: ='ה. קלינאות תקשורת'!B23 -> אי פד | B59: ='ה. קלינאות תקשורת'!G23 -> 0 | C59: ='ה. קלינאות תקשורת'!H23 -> 0 | E59: ='ה. קלינאות תקשורת'!K23 -> 0 | F59: ='ה. קלינאות תקשורת'!L23 -> 0 | G59: =IF(F59=0,"",'ה. קלינאות תקשורת'!M23) ->  | H59: ='ה. קלינאות תקשורת'!N23 -> 0
A60: ='ה. קלינאות תקשורת'!B26 -> ארון אחסון לציוד | B60: ='ה. קלינאות תקשורת'!G26 -> 0 | C60: ='ה. קלינאות תקשורת'!H26 -> 0 | E60: ='ה. קלינאות תקשורת'!K26 -> 0 | F60: ='ה. קלינאות תקשורת'!L26 -> 0 | G60: =IF(F60=0,"",'ה. קלינאות תקשורת'!M26) ->  | H60: ='ה. קלינאות תקשורת'!N26 -> 0
A61: ='ה. קלינאות תקשורת'!B27 -> כסאות | B61: ='ה. קלינאות תקשורת'!G27 -> 0 | C61: ='ה. קלינאות תקשורת'!H27 -> 0 | E61: ='ה. קלינאות תקשורת'!K27 -> 0 | F61: ='ה. קלינאות תקשורת'!L27 -> 0 | G61: =IF(F61=0,"",'ה. קלינאות תקשורת'!M27) ->  | H61: ='ה. קלינאות תקשורת'!N27 -> 0
A62: ='ה. קלינאות תקשורת'!B28 -> שולחנות | B62: ='ה. קלינאות תקשורת'!G28 -> 0 | C62: ='ה. קלינאות תקשורת'!H28 -> 0 | E62: ='ה. קלינאות תקשורת'!K28 -> 0 | F62: ='ה. קלינאות תקשורת'!L28 -> 0 | G62: =IF(F62=0,"",'ה. קלינאות תקשורת'!M28) ->  | H62: ='ה. קלינאות תקשורת'!N28 -> 0
A63: ='ה. קלינאות תקשורת'!B29 -> מראה ווילון | B63: ='ה. קלינאות תקשורת'!G29 -> 0 | C63: ='ה. קלינאות תקשורת'!H29 -> 0 | E63: ='ה. קלינאות תקשורת'!K29 -> 0 | F63: ='ה. קלינאות תקשורת'!L29 -> 0 | G63: =IF(F63=0,"",'ה. קלינאות תקשורת'!M29) ->  | H63: ='ה. קלינאות תקשורת'!N29 -> 0
A64: ='ה. קלינאות תקשורת'!B30 -> לוח מחיק | B64: ='ה. קלינאות תקשורת'!G30 -> 0 | C64: ='ה. קלינאות תקשורת'!H30 -> 0 | E64: ='ה. קלינאות תקשורת'!K30 -> 0 | F64: ='ה. קלינאות תקשורת'!L30 -> 0 | G64: =IF(F64=0,"",'ה. קלינאות תקשורת'!M30) ->  | H64: ='ה. קלינאות תקשורת'!N30 -> 0
A65: ='ה. קלינאות תקשורת'!B31 -> שטיח | B65: ='ה. קלינאות תקשורת'!G31 -> 0 | C65: ='ה. קלינאות תקשורת'!H31 -> 0 | E65: ='ה. קלינאות תקשורת'!K31 -> 0 | F65: ='ה. קלינאות תקשורת'!L31 -> 0 | G65: =IF(F65=0,"",'ה. קלינאות תקשורת'!M31) ->  | H65: ='ה. קלינאות תקשורת'!N31 -> 0
A66: ='ה. קלינאות תקשורת'!B33 -> סה"כ ציוד קלינאות תקשורת כולל מע"מ | C66: =SUM(C48:C65) -> 0 | E66: =A66 -> סה"כ ציוד קלינאות תקשורת כולל מע"מ | H66: =SUM(H48:H65) -> 0
A67: ='יג. סיכום'!B29 -> חדר סנוזלן | E67: =A67 -> חדר סנוזלן
A68: ='ו. סנוזלן'!B7 -> מנוף תקרה+ התקנה (לסיעודיים) | B68: ='ו. סנוזלן'!G7 -> 0 | C68: ='ו. סנוזלן'!H7 -> 0 | E68: ='ו. סנוזלן'!K7 -> 0 | F68: ='ו. סנוזלן'!L7 -> 0 | G68: =IF(F68=0,"",'ו. סנוזלן'!M7) ->  | H68: ='ו. סנוזלן'!N7 -> 0
A69: ='ו. סנוזלן'!B8 -> עמוד בועות | B69: ='ו. סנוזלן'!G8 -> 0 | C69: ='ו. סנוזלן'!H8 -> 0 | E69: ='ו. סנוזלן'!K8 -> 0 | F69: ='ו. סנוזלן'!L8 -> 0 | G69: =IF(F69=0,"",'ו. סנוזלן'!M8) ->  | H69: ='ו. סנוזלן'!N8 -> 0
A70: ='ו. סנוזלן'!B9 -> מראות מחוסמות | B70: ='ו. סנוזלן'!G9 -> 0 | C70: ='ו. סנוזלן'!H9 -> 0 | E70: ='ו. סנוזלן'!K9 -> 0 | F70: ='ו. סנוזלן'!L9 -> 0 | G70: =IF(F70=0,"",'ו. סנוזלן'!M9) ->  | H70: ='ו. סנוזלן'!N9 -> 0
A71: ='ו. סנוזלן'!B10 -> בסיס מרופד | B71: ='ו. סנוזלן'!G10 -> 0 | C71: ='ו. סנוזלן'!H10 -> 0 | E71: ='ו. סנוזלן'!K10 -> 0 | F71: ='ו. סנוזלן'!L10 -> 0 | G71: =IF(F71=0,"",'ו. סנוזלן'!M10) ->  | H71: ='ו. סנוזלן'!N10 -> 0
A72: ='ו. סנוזלן'!B11 -> פרוג'קטור | B72: ='ו. סנוזלן'!G11 -> 0 | C72: ='ו. סנוזלן'!H11 -> 0 | E72: ='ו. סנוזלן'!K11 -> 0 | F72: ='ו. סנוזלן'!L11 -> 0 | G72: =IF(F72=0,"",'ו. סנוזלן'!M11) ->  | H72: ='ו. סנוזלן'!N11 -> 0
A73: ='ו. סנוזלן'!B12 -> פופ | B73: ='ו. סנוזלן'!G12 -> 0 | C73: ='ו. סנוזלן'!H12 -> 0 | E73: ='ו. סנוזלן'!K12 -> 0 | F73: ='ו. סנוזלן'!L12 -> 0 | G73: =IF(F73=0,"",'ו. סנוזלן'!M12) ->  | H73: ='ו. סנוזלן'!N12 -> 0
A74: ='ו. סנוזלן'!B13 -> מערכת מוסיקה | B74: ='ו. סנוזלן'!G13 -> 0 | C74: ='ו. סנוזלן'!H13 -> 0 | E74: ='ו. סנוזלן'!K13 -> 0 | F74: ='ו. סנוזלן'!L13 -> 0 | G74: =IF(F74=0,"",'ו. סנוזלן'!M13) ->  | H74: ='ו. סנוזלן'!N13 -> 0
A75: ='ו. סנוזלן'!B14 -> ריפוד רצפה וקירות ל 20 מ"ר | B75: ='ו. סנוזלן'!G14 -> 0 | C75: ='ו. סנוזלן'!H14 -> 0 | E75: ='ו. סנוזלן'!K14 -> 0 | F75: ='ו. סנוזלן'!L14 -> 0 | G75: =IF(F75=0,"",'ו. סנוזלן'!M14) ->  | H75: ='ו. סנוזלן'!N14 -> 0
A76: ='ו. סנוזלן'!B15 -> סיבים אופטיים | B76: ='ו. סנוזלן'!G15 -> 0 | C76: ='ו. סנוזלן'!H15 -> 0 | E76: ='ו. סנוזלן'!K15 -> 0 | F76: ='ו. סנוזלן'!L15 -> 0 | G76: =IF(F76=0,"",'ו. סנוזלן'!M15) ->  | H76: ='ו. סנוזלן'!N15 -> 0
A77: ='ו. סנוזלן'!B16 -> כדור מראות+מקרן | B77: ='ו. סנוזלן'!G16 -> 0 | C77: ='ו. סנוזלן'!H16 -> 0 | E77: ='ו. סנוזלן'!K16 -> 0 | F77: ='ו. סנוזלן'!L16 -> 0 | G77: =IF(F77=0,"",'ו. סנוזלן'!M16) ->  | H77: ='ו. סנוזלן'!N16 -> 0
A78: ='ו. סנוזלן'!B17 -> נדנדה | B78: ='ו. סנוזלן'!G17 -> 0 | C78: ='ו. סנוזלן'!H17 -> 0 | E78: ='ו. סנוזלן'!K17 -> 0 | F78: ='ו. סנוזלן'!L17 -> 0 | G78: =IF(F78=0,"",'ו. סנוזלן'!M17) ->  | H78: ='ו. סנוזלן'!N17 -> 0
A79: ='ו. סנוזלן'!B18 -> מתרגם קול לאור | B79: ='ו. סנוזלן'!G18 -> 0 | C79: ='ו. סנוזלן'!H18 -> 0 | E79: ='ו. סנוזלן'!K18 -> 0 | F79: ='ו. סנוזלן'!L18 -> 0 | G79: =IF(F79=0,"",'ו. סנוזלן'!M18) ->  | H79: ='ו. סנוזלן'!N18 -> 0
A80: ='ו. סנוזלן'!B19 -> מתקן גירוי תגובה | B80: ='ו. סנוזלן'!G19 -> 0 | C80: ='ו. סנוזלן'!H19 -> 0 | E80: ='ו. סנוזלן'!K19 -> 0 | F80: ='ו. סנוזלן'!L19 -> 0 | G80: =IF(F80=0,"",'ו. סנוזלן'!M19) ->  | H80: ='ו. סנוזלן'!N19 -> 0
A81: ='ו. סנוזלן'!B20 -> אביזרי עיסוי | B81: ='ו. סנוזלן'!G20 -> 0 | C81: ='ו. סנוזלן'!H20 -> 0 | E81: ='ו. סנוזלן'!K20 -> 0 | F81: ='ו. סנוזלן'!L20 -> 0 | G81: =IF(F81=0,"",'ו. סנוזלן'!M20) ->  | H81: ='ו. סנוזלן'!N20 -> 0
A82: ='ו. סנוזלן'!B21 -> אביזרי גריה קטנים | B82: ='ו. סנוזלן'!G21 -> 0 | C82: ='ו. סנוזלן'!H21 -> 0 | E82: ='ו. סנוזלן'!K21 -> 0 | F82: ='ו. סנוזלן'!L21 -> 0 | G82: =IF(F82=0,"",'ו. סנוזלן'!M21) ->  | H82: ='ו. סנוזלן'!N21 -> 0
A83: ='ו. סנוזלן'!B22 -> ארון אחסון לעזרים | B83: ='ו. סנוזלן'!G22 -> 0 | C83: ='ו. סנוזלן'!H22 -> 0 | E83: ='ו. סנוזלן'!K22 -> 0 | F83: ='ו. סנוזלן'!L22 -> 0 | G83: =IF(F83=0,"",'ו. סנוזלן'!M22) ->  | H83: ='ו. סנוזלן'!N22 -> 0
A84: ='ו. סנוזלן'!B23 -> סה"כ ציוד חדר סנוזלן כולל מע"מ | C84: =SUM(C68:C83) -> 0 | E84: =A84 -> סה"כ ציוד חדר סנוזלן כולל מע"מ | H84: =SUM(H68:H83) -> 0
A85: ='יג. סיכום'!B30 -> מתקני חצר | E85: מתקני חצר
A86: ='ז. מתקני חצר '!B7 -> לחיצת חזה משיכה עליונה | B86: ='ז. מתקני חצר '!H7 -> 0 | C86: ='ז. מתקני חצר '!I7 -> 0 | E86: ='ז. מתקני חצר '!L7 -> 0 | F86: ='ז. מתקני חצר '!M7 -> 0 | G86: =IF(F86=0,"",'ז. מתקני חצר '!N7) ->  | H86: ='ז. מתקני חצר '!O7 -> 0
A87: ='ז. מתקני חצר '!B8 -> מתקן דחיקת כתפיים למשתמש | B87: ='ז. מתקני חצר '!H8 -> 0 | C87: ='ז. מתקני חצר '!I8 -> 0 | E87: ='ז. מתקני חצר '!L8 -> 0 | F87: ='ז. מתקני חצר '!M8 -> 0 | G87: =IF(F87=0,"",'ז. מתקני חצר '!N8) ->  | H87: ='ז. מתקני חצר '!O8 -> 0
A88: ='ז. מתקני חצר '!B9 -> מתקן פרפר חזה | B88: ='ז. מתקני חצר '!H9 -> 0 | C88: ='ז. מתקני חצר '!I9 -> 0 | E88: ='ז. מתקני חצר '!L9 -> 0 | F88: ='ז. מתקני חצר '!M9 -> 0 | G88: =IF(F88=0,"",'ז. מתקני חצר '!N9) ->  | H88: ='ז. מתקני חצר '!O9 -> 0
A89: ='ז. מתקני חצר '!B10 -> מתקן פרפר הפוך | B89: ='ז. מתקני חצר '!H10 -> 0 | C89: ='ז. מתקני חצר '!I10 -> 0 | E89: ='ז. מתקני חצר '!L10 -> 0 | F89: ='ז. מתקני חצר '!M10 -> 0 | G89: =IF(F89=0,"",'ז. מתקני חצר '!N10) ->  | H89: ='ז. מתקני חצר '!O10 -> 0
A90: ='ז. מתקני חצר '!B11 -> מתקן מקבילי כנף לזוג משתמשים | B90: ='ז. מתקני חצר '!H11 -> 0 | C90: ='ז. מתקני חצר '!I11 -> 0 | E90: ='ז. מתקני חצר '!L11 -> 0 | F90: ='ז. מתקני חצר '!M11 -> 0 | G90: =IF(F90=0,"",'ז. מתקני חצר '!N11) ->  | H90: ='ז. מתקני חצר '!O11 -> 0
A91: ='ז. מתקני חצר '!B12 -> מתקן דחיקת רגליים לזוג משתמשים | B91: ='ז. מתקני חצר '!H12 -> 0 | C91: ='ז. מתקני חצר '!I12 -> 0 | E91: ='ז. מתקני חצר '!L12 -> 0 | F91: ='ז. מתקני חצר '!M12 -> 0 | G91: =IF(F91=0,"",'ז. מתקני חצר '!N12) ->  | H91: ='ז. מתקני חצר '!O12 -> 0
A92: ='ז. מתקני חצר '!B13 -> מתקן סקי | B92: ='ז. מתקני חצר '!H13 -> 0 | C92: ='ז. מתקני חצר '!I13 -> 0 | E92: ='ז. מתקני חצר '!L13 -> 0 | F92: ='ז. מתקני חצר '!M13 -> 0 | G92: =IF(F92=0,"",'ז. מתקני חצר '!N13) ->  | H92: ='ז. מתקני חצר '!O13 -> 0
A93: ='ז. מתקני חצר '!B14 -> מתקן הליכה באוויר לזוג משתמשים | B93: ='ז. מתקני חצר '!H14 -> 0 | C93: ='ז. מתקני חצר '!I14 -> 0 | E93: ='ז. מתקני חצר '!L14 -> 0 | F93: ='ז. מתקני חצר '!M14 -> 0 | G93: =IF(F93=0,"",'ז. מתקני חצר '!N14) ->  | H93: ='ז. מתקני חצר '!O14 -> 0
A94: ='ז. מתקני חצר '!B15 -> מתקן חתירה בכורסא | B94: ='ז. מתקני חצר '!H15 -> 0 | C94: ='ז. מתקני חצר '!I15 -> 0 | E94: ='ז. מתקני חצר '!L15 -> 0 | F94: ='ז. מתקני חצר '!M15 -> 0 | G94: =IF(F94=0,"",'ז. מתקני חצר '!N15) ->  | H94: ='ז. מתקני חצר '!O15 -> 0
A95: ='ז. מתקני חצר '!B16 -> ממתקן מאמן אגן שרירי בטן ישבן וירכיים בתנועת מטוטלת | B95: ='ז. מתקני חצר '!H16 -> 0 | C95: ='ז. מתקני חצר '!I16 -> 0 | E95: ='ז. מתקני חצר '!L16 -> 0 | F95: ='ז. מתקני חצר '!M16 -> 0 | G95: =IF(F95=0,"",'ז. מתקני חצר '!N16) ->  | H95: ='ז. מתקני חצר '!O16 -> 0
A96: ='ז. מתקני חצר '!B17 -> מתקן אופני ידיים רגליים | B96: ='ז. מתקני חצר '!H17 -> 0 | C96: ='ז. מתקני חצר '!I17 -> 0 | E96: ='ז. מתקני חצר '!L17 -> 0 | F96: ='ז. מתקני חצר '!M17 -> 0 | G96: =IF(F96=0,"",'ז. מתקני חצר '!N17) ->  | H96: ='ז. מתקני חצר '!O17 -> 0
A97: ='ז. מתקני חצר '!B18 -> מתקן אימון פולי תחתון בתמיכת חזה | B97: ='ז. מתקני חצר '!H18 -> 0 | C97: ='ז. מתקני חצר '!I18 -> 0 | E97: ='ז. מתקני חצר '!L18 -> 0 | F97: ='ז. מתקני חצר '!M18 -> 0 | G97: =IF(F97=0,"",'ז. מתקני חצר '!N18) ->  | H97: ='ז. מתקני חצר '!O18 -> 0
A98: ='ז. מתקני חצר '!B19 -> מתקן אופני ספיננג | B98: ='ז. מתקני חצר '!H19 -> 0 | C98: ='ז. מתקני חצר '!I19 -> 0 | E98: ='ז. מתקני חצר '!L19 -> 0 | F98: ='ז. מתקני חצר '!M19 -> 0 | G98: =IF(F98=0,"",'ז. מתקני חצר '!N19) ->  | H98: ='ז. מתקני חצר '!O19 -> 0
A99: ='ז. מתקני חצר '!B20 -> מתקן דחיקת רגליים לארבע | B99: ='ז. מתקני חצר '!H20 -> 0 | C99: ='ז. מתקני חצר '!I20 -> 0 | E99: ='ז. מתקני חצר '!L20 -> 0 | F99: ='ז. מתקני חצר '!M20 -> 0 | G99: =IF(F99=0,"",'ז. מתקני חצר '!N20) ->  | H99: ='ז. מתקני חצר '!O20 -> 0
A100: ='ז. מתקני חצר '!B21 -> מתקן מתח –מקבילים וכורסת בטן | B100: ='ז. מתקני חצר '!H21 -> 0 | C100: ='ז. מתקני חצר '!I21 -> 0 | E100: ='ז. מתקני חצר '!L21 -> 0 | F100: ='ז. מתקני חצר '!M21 -> 0 | G100: =IF(F100=0,"",'ז. מתקני חצר '!N21) ->  | H100: ='ז. מתקני חצר '!O21 -> 0
A101: ='ז. מתקני חצר '!B22 -> נדנדה קן לציפור | B101: ='ז. מתקני חצר '!H22 -> 0 | C101: ='ז. מתקני חצר '!I22 -> 0 | E101: ='ז. מתקני חצר '!L22 -> 0 | F101: ='ז. מתקני חצר '!M22 -> 0 | G101: =IF(F101=0,"",'ז. מתקני חצר '!N22) ->  | H101: ='ז. מתקני חצר '!O22 -> 0
A102: ='ז. מתקני חצר '!B23 -> מתקני מוזיקה | B102: ='ז. מתקני חצר '!H23 -> 0 | C102: ='ז. מתקני חצר '!I23 -> 0 | E102: ='ז. מתקני חצר '!L23 -> 0 | F102: ='ז. מתקני חצר '!M23 -> 0 | G102: =IF(F102=0,"",'ז. מתקני חצר '!N23) ->  | H102: ='ז. מתקני חצר '!O23 -> 0
A103: ='ז. מתקני חצר '!B24 -> כדורגל שולחן | B103: ='ז. מתקני חצר '!H24 -> 0 | C103: ='ז. מתקני חצר '!I24 -> 0 | E103: ='ז. מתקני חצר '!L24 -> 0 | F103: ='ז. מתקני חצר '!M24 -> 0 | G103: =IF(F103=0,"",'ז. מתקני חצר '!N24) ->  | H103: ='ז. מתקני חצר '!O24 -> 0
A104: ='ז. מתקני חצר '!B25 -> הוקי אויר | B104: ='ז. מתקני חצר '!H25 -> 0 | C104: ='ז. מתקני חצר '!I25 -> 0 | E104: ='ז. מתקני חצר '!L25 -> 0 | F104: ='ז. מתקני חצר '!M25 -> 0 | G104: =IF(F104=0,"",'ז. מתקני חצר '!N25) ->  | H104: ='ז. מתקני חצר '!O25 -> 0
A105: ='ז. מתקני חצר '!B26 -> משטח גומי | B105: ='ז. מתקני חצר '!H26 -> 0 | C105: ='ז. מתקני חצר '!I26 -> 0 | E105: ='ז. מתקני חצר '!L26 -> 0 | F105: ='ז. מתקני חצר '!M26 -> 0 | G105: =IF(F105=0,"",'ז. מתקני חצר '!N26) ->  | H105: ='ז. מתקני חצר '!O26 -> 0
A106: ='ז. מתקני חצר '!B27 -> סה"כ מתקני חצר (כולל מע"מ) | C106: =SUM(C86:C105) -> 0 | E106: =A106 -> סה"כ מתקני חצר (כולל מע"מ) | H106: =SUM(H86:H105) -> 0
A107: ='יג. סיכום'!B31 -> פיזיותרפיה | E107: פיזיותרפיה
A108: ='ח. פיזיותרפיה'!B8 -> בובט מיטת טיפול | B108: ='ח. פיזיותרפיה'!G8 -> 0 | C108: ='ח. פיזיותרפיה'!H8 -> 0 | E108: ='ח. פיזיותרפיה'!K8 -> 0 | F108: ='ח. פיזיותרפיה'!L8 -> 0 | G108: =IF(F108=0,"",'ח. פיזיותרפיה'!M8) ->  | H108: ='ח. פיזיותרפיה'!N8 -> 0
A109: ='ח. פיזיותרפיה'!B9 -> כסא מטפל | B109: ='ח. פיזיותרפיה'!G9 -> 0 | C109: ='ח. פיזיותרפיה'!H9 -> 0 | E109: ='ח. פיזיותרפיה'!K9 -> 0 | F109: ='ח. פיזיותרפיה'!L9 -> 0 | G109: =IF(F109=0,"",'ח. פיזיותרפיה'!M9) ->  | H109: ='ח. פיזיותרפיה'!N9 -> 0
A110: ='ח. פיזיותרפיה'!B10 -> סולם שבדי ותוספות | B110: ='ח. פיזיותרפיה'!G10 -> 0 | C110: ='ח. פיזיותרפיה'!H10 -> 0 | E110: ='ח. פיזיותרפיה'!K10 -> 0 | F110: ='ח. פיזיותרפיה'!L10 -> 0 | G110: =IF(F110=0,"",'ח. פיזיותרפיה'!M10) ->  | H110: ='ח. פיזיותרפיה'!N10 -> 0
A111: ='ח. פיזיותרפיה'!B11 -> אחות אילמת | B111: ='ח. פיזיותרפיה'!G11 -> 0 | C111: ='ח. פיזיותרפיה'!H11 -> 0 | E111: ='ח. פיזיותרפיה'!K11 -> 0 | F111: ='ח. פיזיותרפיה'!L11 -> 0 | G111: =IF(F111=0,"",'ח. פיזיותרפיה'!M11) ->  | H111: ='ח. פיזיותרפיה'!N11 -> 0
A112: ='ח. פיזיותרפיה'!B12 -> מקבילים | B112: ='ח. פיזיותרפיה'!G12 -> 0 | C112: ='ח. פיזיותרפיה'!H12 -> 0 | E112: ='ח. פיזיותרפיה'!K12 -> 0 | F112: ='ח. פיזיותרפיה'!L12 -> 0 | G112: =IF(F112=0,"",'ח. פיזיותרפיה'!M12) ->  | H112: ='ח. פיזיותרפיה'!N12 -> 0
A113: ='ח. פיזיותרפיה'!B13 -> ארון איחסון | B113: ='ח. פיזיותרפיה'!G13 -> 0 | C113: ='ח. פיזיותרפיה'!H13 -> 0 | E113: ='ח. פיזיותרפיה'!K13 -> 0 | F113: ='ח. פיזיותרפיה'!L13 -> 0 | G113: =IF(F113=0,"",'ח. פיזיותרפיה'!M13) ->  | H113: ='ח. פיזיותרפיה'!N13 -> 0
A114: ='ח. פיזיותרפיה'!B14 -> מחשוב | B114: ='ח. פיזיותרפיה'!G14 -> 0 | C114: ='ח. פיזיותרפיה'!H14 -> 0 | E114: ='ח. פיזיותרפיה'!K14 -> 0 | F114: ='ח. פיזיותרפיה'!L14 -> 0 | G114: =IF(F114=0,"",'ח. פיזיותרפיה'!M14) ->  | H114: ='ח. פיזיותרפיה'!N14 -> 0
A115: ='ח. פיזיותרפיה'!B17 -> כיסא אקטיבי מיוחד קטן/בינוני | B115: ='ח. פיזיותרפיה'!G17 -> 0 | C115: ='ח. פיזיותרפיה'!H17 -> 0 | E115: ='ח. פיזיותרפיה'!K17 -> 0 | F115: ='ח. פיזיותרפיה'!L17 -> 0 | G115: =IF(F115=0,"",'ח. פיזיותרפיה'!M17) ->  | H115: ='ח. פיזיותרפיה'!N17 -> 0
A116: ='ח. פיזיותרפיה'!B18 -> כיסא אקטיבי מיוחד גדול | B116: ='ח. פיזיותרפיה'!G18 -> 0 | C116: ='ח. פיזיותרפיה'!H18 -> 0 | E116: ='ח. פיזיותרפיה'!K18 -> 0 | F116: ='ח. פיזיותרפיה'!L18 -> 0 | G116: =IF(F116=0,"",'ח. פיזיותרפיה'!M18) ->  | H116: ='ח. פיזיותרפיה'!N18 -> 0
A117: ='ח. פיזיותרפיה'!B21 -> עמידון קידמי כולל תמיכות | B117: ='ח. פיזיותרפיה'!G21 -> 0 | C117: ='ח. פיזיותרפיה'!H21 -> 0 | E117: ='ח. פיזיותרפיה'!K21 -> 0 | F117: ='ח. פיזיותרפיה'!L21 -> 0 | G117: =IF(F117=0,"",'ח. פיזיותרפיה'!M21) ->  | H117: ='ח. פיזיותרפיה'!N21 -> 0
A118: ='ח. פיזיותרפיה'!B22 -> עמידון אחורי כולל תמיכות | B118: ='ח. פיזיותרפיה'!G22 -> 0 | C118: ='ח. פיזיותרפיה'!H22 -> 0 | E118: ='ח. פיזיותרפיה'!K22 -> 0 | F118: ='ח. פיזיותרפיה'!L22 -> 0 | G118: =IF(F118=0,"",'ח. פיזיותרפיה'!M22) ->  | H118: ='ח. פיזיותרפיה'!N22 -> 0
A119: ='ח. פיזיותרפיה'!B23 -> מיטת טיל גדולה | B119: ='ח. פיזיותרפיה'!G23 -> 0 | C119: ='ח. פיזיותרפיה'!H23 -> 0 | E119: ='ח. פיזיותרפיה'!K23 -> 0 | F119: ='ח. פיזיותרפיה'!L23 -> 0 | G119: =IF(F119=0,"",'ח. פיזיותרפיה'!M23) ->  | H119: ='ח. פיזיותרפיה'!N23 -> 0
A120: ='ח. פיזיותרפיה'!B24 -> עמידון גדול כולל תמיכות מרובות | B120: ='ח. פיזיותרפיה'!G24 -> 0 | C120: ='ח. פיזיותרפיה'!H24 -> 0 | E120: ='ח. פיזיותרפיה'!K24 -> 0 | F120: ='ח. פיזיותרפיה'!L24 -> 0 | G120: =IF(F120=0,"",'ח. פיזיותרפיה'!M24) ->  | H120: ='ח. פיזיותרפיה'!N24 -> 0
A121: ='ח. פיזיותרפיה'!B25 -> ישיבה לעמידה עם תמיכות מרובות | B121: ='ח. פיזיותרפיה'!G25 -> 0 | C121: ='ח. פיזיותרפיה'!H25 -> 0 | E121: ='ח. פיזיותרפיה'!K25 -> 0 | F121: ='ח. פיזיותרפיה'!L25 -> 0 | G121: =IF(F121=0,"",'ח. פיזיותרפיה'!M25) ->  | H121: ='ח. פיזיותרפיה'!N25 -> 0
A122: ='ח. פיזיותרפיה'!B28 -> הליכון קידמי פשוט | B122: ='ח. פיזיותרפיה'!G28 -> 0 | C122: ='ח. פיזיותרפיה'!H28 -> 0 | E122: ='ח. פיזיותרפיה'!K28 -> 0 | F122: ='ח. פיזיותרפיה'!L28 -> 0 | G122: =IF(F122=0,"",'ח. פיזיותרפיה'!M28) ->  | H122: ='ח. פיזיותרפיה'!N28 -> 0
A123: ='ח. פיזיותרפיה'!B29 -> הליכון אחורי ק | B123: ='ח. פיזיותרפיה'!G29 -> 0 | C123: ='ח. פיזיותרפיה'!H29 -> 0 | E123: ='ח. פיזיותרפיה'!K29 -> 0 | F123: ='ח. פיזיותרפיה'!L29 -> 0 | G123: =IF(F123=0,"",'ח. פיזיותרפיה'!M29) ->  | H123: ='ח. פיזיותרפיה'!N29 -> 0
A124: ='ח. פיזיותרפיה'!B30 -> הליכון אחורי ב | B124: ='ח. פיזיותרפיה'!G30 -> 0 | C124: ='ח. פיזיותרפיה'!H30 -> 0 | E124: ='ח. פיזיותרפיה'!K30 -> 0 | F124: ='ח. פיזיותרפיה'!L30 -> 0 | G124: =IF(F124=0,"",'ח. פיזיותרפיה'!M30) ->  | H124: ='ח. פיזיותרפיה'!N30 -> 0
A125: ='ח. פיזיותרפיה'!B31 -> הליכון אחורי ג | B125: ='ח. פיזיותרפיה'!G31 -> 0 | C125: ='ח. פיזיותרפיה'!H31 -> 0 | E125: ='ח. פיזיותרפיה'!K31 -> 0 | F125: ='ח. פיזיותרפיה'!L31 -> 0 | G125: =IF(F125=0,"",'ח. פיזיותרפיה'!M31) ->  | H125: ='ח. פיזיותרפיה'!N31 -> 0
A126: ='ח. פיזיותרפיה'!B32 -> הליכון אמות הדראולי | B126: ='ח. פיזיותרפיה'!G32 -> 0 | C126: ='ח. פיזיותרפיה'!H32 -> 0 | E126: ='ח. פיזיותרפיה'!K32 -> 0 | F126: ='ח. פיזיותרפיה'!L32 -> 0 | G126: =IF(F126=0,"",'ח. פיזיותרפיה'!M32) ->  | H126: ='ח. פיזיותרפיה'!N32 -> 0
A127: ='ח. פיזיותרפיה'!B33 -> הליכון אמות רגיל | B127: ='ח. פיזיותרפיה'!G33 -> 0 | C127: ='ח. פיזיותרפיה'!H33 -> 0 | E127: ='ח. פיזיותרפיה'!K33 -> 0 | F127: ='ח. פיזיותרפיה'!L33 -> 0 | G127: =IF(F127=0,"",'ח. פיזיותרפיה'!M33) ->  | H127: ='ח. פיזיותרפיה'!N33 -> 0
A128: ='ח. פיזיותרפיה'!B34 -> רולטור בסיסי | B128: ='ח. פיזיותרפיה'!G34 -> 0 | C128: ='ח. פיזיותרפיה'!H34 -> 0 | E128: ='ח. פיזיותרפיה'!K34 -> 0 | F128: ='ח. פיזיותרפיה'!L34 -> 0 | G128: =IF(F128=0,"",'ח. פיזיותרפיה'!M34) ->  | H128: ='ח. פיזיותרפיה'!N34 -> 0
A129: ='ח. פיזיותרפיה'!B35 -> רולטור מיוחד תמיכות | B129: ='ח. פיזיותרפיה'!G35 -> 0 | C129: ='ח. פיזיותרפיה'!H35 -> 0 | E129: ='ח. פיזיותרפיה'!K35 -> 0 | F129: ='ח. פיזיותרפיה'!L35 -> 0 | G129: =IF(F129=0,"",'ח. פיזיותרפיה'!M35) ->  | H129: ='ח. פיזיותרפיה'!N35 -> 0
A130: ='ח. פיזיותרפיה'!B36 -> הליכון פייסר | B130: ='ח. פיזיותרפיה'!G36 -> 0 | C130: ='ח. פיזיותרפיה'!H36 -> 0 | E130: ='ח. פיזיותרפיה'!K36 -> 0 | F130: ='ח. פיזיותרפיה'!L36 -> 0 | G130: =IF(F130=0,"",'ח. פיזיותרפיה'!M36) ->  | H130: ='ח. פיזיותרפיה'!N36 -> 0
A131: ='ח. פיזיותרפיה'!B37 -> הליכון גרילו | B131: ='ח. פיזיותרפיה'!G37 -> 0 | C131: ='ח. פיזיותרפיה'!H37 -> 0 | E131: ='ח. פיזיותרפיה'!K37 -> 0 | F131: ='ח. פיזיותרפיה'!L37 -> 0 | G131: =IF(F131=0,"",'ח. פיזיותרפיה'!M37) ->  | H131: ='ח. פיזיותרפיה'!N37 -> 0
A132: ='ח. פיזיותרפיה'!B38 -> הליכון אוכף | B132: ='ח. פיזיותרפיה'!G38 -> 0 | C132: ='ח. פיזיותרפיה'!H38 -> 0 | E132: ='ח. פיזיותרפיה'!K38 -> 0 | F132: ='ח. פיזיותרפיה'!L38 -> 0 | G132: =IF(F132=0,"",'ח. פיזיותרפיה'!M38) ->  | H132: ='ח. פיזיותרפיה'!N38 -> 0
A133: ='ח. פיזיותרפיה'!B41 -> מנוף תקרה+ התקנה | B133: ='ח. פיזיותרפיה'!G41 -> 0 | C133: ='ח. פיזיותרפיה'!H41 -> 0 | E133: ='ח. פיזיותרפיה'!K41 -> 0 | F133: ='ח. פיזיותרפיה'!L41 -> 0 | G133: =IF(F133=0,"",'ח. פיזיותרפיה'!M41) ->  | H133: ='ח. פיזיותרפיה'!N41 -> 0
A134: ='ח. פיזיותרפיה'!B42 -> מנוף רצפה | B134: ='ח. פיזיותרפיה'!G42 -> 0 | C134: ='ח. פיזיותרפיה'!H42 -> 0 | E134: ='ח. פיזיותרפיה'!K42 -> 0 | F134: ='ח. פיזיותרפיה'!L42 -> 0 | G134: =IF(F134=0,"",'ח. פיזיותרפיה'!M42) ->  | H134: ='ח. פיזיותרפיה'!N42 -> 0
A135: ='ח. פיזיותרפיה'!B43 -> מנופי העמדה | B135: ='ח. פיזיותרפיה'!G43 -> 0 | C135: ='ח. פיזיותרפיה'!H43 -> 0 | E135: ='ח. פיזיותרפיה'!K43 -> 0 | F135: ='ח. פיזיותרפיה'!L43 -> 0 | G135: =IF(F135=0,"",'ח. פיזיותרפיה'!M43) ->  | H135: ='ח. פיזיותרפיה'!N43 -> 0
A136: ='ח. פיזיותרפיה'!B44 -> ערסלים | B136: ='ח. פיזיותרפיה'!G44 -> 0 | C136: ='ח. פיזיותרפיה'!H44 -> 0 | E136: ='ח. פיזיותרפיה'!K44 -> 0 | F136: ='ח. פיזיותרפיה'!L44 -> 0 | G136: =IF(F136=0,"",'ח. פיזיותרפיה'!M44) ->  | H136: ='ח. פיזיותרפיה'!N44 -> 0
A137: ='ח. פיזיותרפיה'!B45 -> תוספת לערסלים מיוחדים | B137: ='ח. פיזיותרפיה'!G45 -> 0 | C137: ='ח. פיזיותרפיה'!H45 -> 0 | E137: ='ח. פיזיותרפיה'!K45 -> 0 | F137: ='ח. פיזיותרפיה'!L45 -> 0 | G137: =IF(F137=0,"",'ח. פיזיותרפיה'!M45) ->  | H137: ='ח. פיזיותרפיה'!N45 -> 0
A138: ='ח. פיזיותרפיה'!B48 -> נדנדות | B138: ='ח. פיזיותרפיה'!G48 -> 0 | C138: ='ח. פיזיותרפיה'!H48 -> 0 | E138: ='ח. פיזיותרפיה'!K48 -> 0 | F138: ='ח. פיזיותרפיה'!L48 -> 0 | G138: =IF(F138=0,"",'ח. פיזיותרפיה'!M48) ->  | H138: ='ח. פיזיותרפיה'!N48 -> 0
A139: ='ח. פיזיותרפיה'!B49 -> גלילים | B139: ='ח. פיזיותרפיה'!G49 -> 0 | C139: ='ח. פיזיותרפיה'!H49 -> 0 | E139: ='ח. פיזיותרפיה'!K49 -> 0 | F139: ='ח. פיזיותרפיה'!L49 -> 0 | G139: =IF(F139=0,"",'ח. פיזיותרפיה'!M49) ->  | H139: ='ח. פיזיותרפיה'!N49 -> 0
A140: ='ח. פיזיותרפיה'!B50 -> כדורים שונים | B140: ='ח. פיזיותרפיה'!G50 -> 0 | C140: ='ח. פיזיותרפיה'!H50 -> 0 | E140: ='ח. פיזיותרפיה'!K50 -> 0 | F140: ='ח. פיזיותרפיה'!L50 -> 0 | G140: =IF(F140=0,"",'ח. פיזיותרפיה'!M50) ->  | H140: ='ח. פיזיותרפיה'!N50 -> 0
A141: ='ח. פיזיותרפיה'!B51 -> עזרים לפיתוח שיווי משקל | B141: ='ח. פיזיותרפיה'!G51 -> 0 | C141: ='ח. פיזיותרפיה'!H51 -> 0 | E141: ='ח. פיזיותרפיה'!K51 -> 0 | F141: ='ח. פיזיותרפיה'!L51 -> 0 | G141: =IF(F141=0,"",'ח. פיזיותרפיה'!M51) ->  | H141: ='ח. פיזיותרפיה'!N51 -> 0
A142: ='ח. פיזיותרפיה'!B52 -> מזרונים | B142: ='ח. פיזיותרפיה'!G52 -> 0 | C142: ='ח. פיזיותרפיה'!H52 -> 0 | E142: ='ח. פיזיותרפיה'!K52 -> 0 | F142: ='ח. פיזיותרפיה'!L52 -> 0 | G142: =IF(F142=0,"",'ח. פיזיותרפיה'!M52) ->  | H142: ='ח. פיזיותרפיה'!N52 -> 0
A143: ='ח. פיזיותרפיה'!B53 -> אביזרי טיפוס | B143: ='ח. פיזיותרפיה'!G53 -> 0 | C143: ='ח. פיזיותרפיה'!H53 -> 0 | E143: ='ח. פיזיותרפיה'!K53 -> 0 | F143: ='ח. פיזיותרפיה'!L53 -> 0 | G143: =IF(F143=0,"",'ח. פיזיותרפיה'!M53) ->  | H143: ='ח. פיזיותרפיה'!N53 -> 0
A144: ='ח. פיזיותרפיה'!B54 -> ערכות הפעלה | B144: ='ח. פיזיותרפיה'!G54 -> 0 | C144: ='ח. פיזיותרפיה'!H54 -> 0 | E144: ='ח. פיזיותרפיה'!K54 -> 0 | F144: ='ח. פיזיותרפיה'!L54 -> 0 | G144: =IF(F144=0,"",'ח. פיזיותרפיה'!M54) ->  | H144: ='ח. פיזיותרפיה'!N54 -> 0
A145: ='ח. פיזיותרפיה'!B55 -> אביזרים לפעילות קבוצתית | B145: ='ח. פיזיותרפיה'!G55 -> 0 | C145: ='ח. פיזיותרפיה'!H55 -> 0 | E145: ='ח. פיזיותרפיה'!K55 -> 0 | F145: ='ח. פיזיותרפיה'!L55 -> 0 | G145: =IF(F145=0,"",'ח. פיזיותרפיה'!M55) ->  | H145: ='ח. פיזיותרפיה'!N55 -> 0
A146: ='ח. פיזיותרפיה'!B56 -> משחקי גירוי תגובה | B146: ='ח. פיזיותרפיה'!G56 -> 0 | C146: ='ח. פיזיותרפיה'!H56 -> 0 | E146: ='ח. פיזיותרפיה'!K56 -> 0 | F146: ='ח. פיזיותרפיה'!L56 -> 0 | G146: =IF(F146=0,"",'ח. פיזיותרפיה'!M56) ->  | H146: ='ח. פיזיותרפיה'!N56 -> 0
A147: ='ח. פיזיותרפיה'!B57 -> התקנות והתאמות | B147: ='ח. פיזיותרפיה'!G57 -> 0 | C147: ='ח. פיזיותרפיה'!H57 -> 0 | E147: ='ח. פיזיותרפיה'!K57 -> 0 | F147: ='ח. פיזיותרפיה'!L57 -> 0 | G147: =IF(F147=0,"",'ח. פיזיותרפיה'!M57) ->  | H147: ='ח. פיזיותרפיה'!N57 -> 0
A148: ='ח. פיזיותרפיה'!B58 -> עזרי הפעלה ועוררות | B148: ='ח. פיזיותרפיה'!G58 -> 0 | C148: ='ח. פיזיותרפיה'!H58 -> 0 | E148: ='ח. פיזיותרפיה'!K58 -> 0 | F148: ='ח. פיזיותרפיה'!L58 -> 0 | G148: =IF(F148=0,"",'ח. פיזיותרפיה'!M58) ->  | H148: ='ח. פיזיותרפיה'!N58 -> 0
A149: ='ח. פיזיותרפיה'!B59 -> עזרי פעילות תנועתית | B149: ='ח. פיזיותרפיה'!G59 -> 0 | C149: ='ח. פיזיותרפיה'!H59 -> 0 | E149: ='ח. פיזיותרפיה'!K59 -> 0 | F149: ='ח. פיזיותרפיה'!L59 -> 0 | G149: =IF(F149=0,"",'ח. פיזיותרפיה'!M59) ->  | H149: ='ח. פיזיותרפיה'!N59 -> 0
A150: ='ח. פיזיותרפיה'!B60 -> כח וסיבולת | B150: ='ח. פיזיותרפיה'!G60 -> 0 | C150: ='ח. פיזיותרפיה'!H60 -> 0 | E150: ='ח. פיזיותרפיה'!K60 -> 0 | F150: ='ח. פיזיותרפיה'!L60 -> 0 | G150: =IF(F150=0,"",'ח. פיזיותרפיה'!M60) ->  | H150: ='ח. פיזיותרפיה'!N60 -> 0
A151: ='ח. פיזיותרפיה'!B61 -> ארון אחסון לאביזרים הקטנים | B151: ='ח. פיזיותרפיה'!G61 -> 0 | C151: ='ח. פיזיותרפיה'!H61 -> 0 | E151: ='ח. פיזיותרפיה'!K61 -> 0 | F151: ='ח. פיזיותרפיה'!L61 -> 0 | G151: =IF(F151=0,"",'ח. פיזיותרפיה'!M61) ->  | H151: ='ח. פיזיותרפיה'!N61 -> 0
A152: ='ח. פיזיותרפיה'!B62 -> מדף אחסון לכדורים וגלילים | B152: ='ח. פיזיותרפיה'!G62 -> 0 | C152: ='ח. פיזיותרפיה'!H62 -> 0 | E152: ='ח. פיזיותרפיה'!K62 -> 0 | F152: ='ח. פיזיותרפיה'!L62 -> 0 | G152: =IF(F152=0,"",'ח. פיזיותרפיה'!M62) ->  | H152: ='ח. פיזיותרפיה'!N62 -> 0
A153: ='ח. פיזיותרפיה'!B65 -> אופנים + טלויזיה | B153: ='ח. פיזיותרפיה'!G65 -> 0 | C153: ='ח. פיזיותרפיה'!H65 -> 0 | E153: ='ח. פיזיותרפיה'!K65 -> 0 | F153: ='ח. פיזיותרפיה'!L65 -> 0 | G153: =IF(F153=0,"",'ח. פיזיותרפיה'!M65) ->  | H153: ='ח. פיזיותרפיה'!N65 -> 0
A154: ='ח. פיזיותרפיה'!B66 -> מדרגות ארוביות | B154: ='ח. פיזיותרפיה'!G66 -> 0 | C154: ='ח. פיזיותרפיה'!H66 -> 0 | E154: ='ח. פיזיותרפיה'!K66 -> 0 | F154: ='ח. פיזיותרפיה'!L66 -> 0 | G154: =IF(F154=0,"",'ח. פיזיותרפיה'!M66) ->  | H154: ='ח. פיזיותרפיה'!N66 -> 0
A155: ='ח. פיזיותרפיה'!B67 -> בוסו | B155: ='ח. פיזיותרפיה'!G67 -> 0 | C155: ='ח. פיזיותרפיה'!H67 -> 0 | E155: ='ח. פיזיותרפיה'!K67 -> 0 | F155: ='ח. פיזיותרפיה'!L67 -> 0 | G155: =IF(F155=0,"",'ח. פיזיותרפיה'!M67) ->  | H155: ='ח. פיזיותרפיה'!N67 -> 0
A156: ='ח. פיזיותרפיה'!B68 -> פולי | B156: ='ח. פיזיותרפיה'!G68 -> 0 | C156: ='ח. פיזיותרפיה'!H68 -> 0 | E156: ='ח. פיזיותרפיה'!K68 -> 0 | F156: ='ח. פיזיותרפיה'!L68 -> 0 | G156: =IF(F156=0,"",'ח. פיזיותרפיה'!M68) ->  | H156: ='ח. פיזיותרפיה'!N68 -> 0
A157: ='ח. פיזיותרפיה'!B69 -> מעמד עם APT | B157: ='ח. פיזיותרפיה'!G69 -> 0 | C157: ='ח. פיזיותרפיה'!H69 -> 0 | E157: ='ח. פיזיותרפיה'!K69 -> 0 | F157: ='ח. פיזיותרפיה'!L69 -> 0 | G157: =IF(F157=0,"",'ח. פיזיותרפיה'!M69) ->  | H157: ='ח. פיזיותרפיה'!N69 -> 0
A158: ='ח. פיזיותרפיה'!B70 -> אופנים עם משענת | B158: ='ח. פיזיותרפיה'!G70 -> 0 | C158: ='ח. פיזיותרפיה'!H70 -> 0 | E158: ='ח. פיזיותרפיה'!K70 -> 0 | F158: ='ח. פיזיותרפיה'!L70 -> 0 | G158: =IF(F158=0,"",'ח. פיזיותרפיה'!M70) ->  | H158: ='ח. פיזיותרפיה'!N70 -> 0
A159: ='ח. פיזיותרפיה'!B71 -> אופני ידיים ורגליים מתכווננים | B159: ='ח. פיזיותרפיה'!G71 -> 0 | C159: ='ח. פיזיותרפיה'!H71 -> 0 | E159: ='ח. פיזיותרפיה'!K71 -> 0 | F159: ='ח. פיזיותרפיה'!L71 -> 0 | G159: =IF(F159=0,"",'ח. פיזיותרפיה'!M71) ->  | H159: ='ח. פיזיותרפיה'!N71 -> 0
A160: ='ח. פיזיותרפיה'!B72 -> הליכון חשמלי | B160: ='ח. פיזיותרפיה'!G72 -> 0 | C160: ='ח. פיזיותרפיה'!H72 -> 0 | E160: ='ח. פיזיותרפיה'!K72 -> 0 | F160: ='ח. פיזיותרפיה'!L72 -> 0 | G160: =IF(F160=0,"",'ח. פיזיותרפיה'!M72) ->  | H160: ='ח. פיזיותרפיה'!N72 -> 0
A161: ='ח. פיזיותרפיה'!B73 -> מתקן נשיאה | B161: ='ח. פיזיותרפיה'!G73 -> 0 | C161: ='ח. פיזיותרפיה'!H73 -> 0 | E161: ='ח. פיזיותרפיה'!K73 -> 0 | F161: ='ח. פיזיותרפיה'!L73 -> 0 | G161: =IF(F161=0,"",'ח. פיזיותרפיה'!M73) ->  | H161: ='ח. פיזיותרפיה'!N73 -> 0
A162: ='ח. פיזיותרפיה'!B74 -> גומיות, כדורי כח ומשקוליות תקציב כולל | B162: ='ח. פיזיותרפיה'!G74 -> 0 | C162: ='ח. פיזיותרפיה'!H74 -> 0 | E162: ='ח. פיזיותרפיה'!K74 -> 0 | F162: ='ח. פיזיותרפיה'!L74 -> 0 | G162: =IF(F162=0,"",'ח. פיזיותרפיה'!M74) ->  | H162: ='ח. פיזיותרפיה'!N74 -> 0
A163: ='ח. פיזיותרפיה'!B75 -> תלת אופן גדול | B163: ='ח. פיזיותרפיה'!G75 -> 0 | C163: ='ח. פיזיותרפיה'!H75 -> 0 | E163: ='ח. פיזיותרפיה'!K75 -> 0 | F163: ='ח. פיזיותרפיה'!L75 -> 0 | G163: =IF(F163=0,"",'ח. פיזיותרפיה'!M75) ->  | H163: ='ח. פיזיותרפיה'!N75 -> 0
A164: ='ח. פיזיותרפיה'!B76 -> קסדות בגדלים ובצבעים שונים- תקציב כולל | B164: ='ח. פיזיותרפיה'!G76 -> 0 | C164: ='ח. פיזיותרפיה'!H76 -> 0 | E164: ='ח. פיזיותרפיה'!K76 -> 0 | F164: ='ח. פיזיותרפיה'!L76 -> 0 | G164: =IF(F164=0,"",'ח. פיזיותרפיה'!M76) ->  | H164: ='ח. פיזיותרפיה'!N76 -> 0
A165: ='ח. פיזיותרפיה'!B77 -> תלת אופן קטן | B165: ='ח. פיזיותרפיה'!G77 -> 0 | C165: ='ח. פיזיותרפיה'!H77 -> 0 | E165: ='ח. פיזיותרפיה'!K77 -> 0 | F165: ='ח. פיזיותרפיה'!L77 -> 0 | G165: =IF(F165=0,"",'ח. פיזיותרפיה'!M77) ->  | H165: ='ח. פיזיותרפיה'!N77 -> 0
A166: ='ח. פיזיותרפיה'!B78 -> תלת אופן רגיל | B166: ='ח. פיזיותרפיה'!G78 -> 0 | C166: ='ח. פיזיותרפיה'!H78 -> 0 | E166: ='ח. פיזיותרפיה'!K78 -> 0 | F166: ='ח. פיזיותרפיה'!L78 -> 0 | G166: =IF(F166=0,"",'ח. פיזיותרפיה'!M78) ->  | H166: ='ח. פיזיותרפיה'!N78 -> 0
A167: ='ח. פיזיותרפיה'!B80 -> סה"כ ציוד פיזותרפיה כולל מע"מ | C167: =SUM(C108:C166) -> 0 | E167: =A167 -> סה"כ ציוד פיזותרפיה כולל מע"מ | H167: =SUM(H108:H166) -> 0
A168: ='יג. סיכום'!B32 -> ציוד טיפולי שיקומי | E168: =A168 -> ציוד טיפולי שיקומי
A169: ='ט. ציוד טיפולי-שיקומי'!B7 -> מיטה סיעודית כולל מזרן רגיל | B169: ='ט. ציוד טיפולי-שיקומי'!G7 -> 0 | C169: ='ט. ציוד טיפולי-שיקומי'!H7 -> 0 | E169: ='ט. ציוד טיפולי-שיקומי'!K7 -> 0 | F169: ='ט. ציוד טיפולי-שיקומי'!L7 -> 0 | G169: =IF(F169=0,"",'ט. ציוד טיפולי-שיקומי'!M7) ->  | H169: ='ט. ציוד טיפולי-שיקומי'!N7 -> 0
A170: ='ט. ציוד טיפולי-שיקומי'!B8 -> מזרן אויר דינאמי (מזרן נגד פצעי לחץ) | B170: ='ט. ציוד טיפולי-שיקומי'!G8 -> 0 | C170: ='ט. ציוד טיפולי-שיקומי'!H8 -> 0 | E170: ='ט. ציוד טיפולי-שיקומי'!K8 -> 0 | F170: ='ט. ציוד טיפולי-שיקומי'!L8 -> 0 | G170: =IF(F170=0,"",'ט. ציוד טיפולי-שיקומי'!M8) ->  | H170: ='ט. ציוד טיפולי-שיקומי'!N8 -> 0
A171: ='ט. ציוד טיפולי-שיקומי'!B9 -> כיסאות רחצה- סטנדרטי | B171: ='ט. ציוד טיפולי-שיקומי'!G9 -> 0 | C171: ='ט. ציוד טיפולי-שיקומי'!H9 -> 0 | E171: ='ט. ציוד טיפולי-שיקומי'!K9 -> 0 | F171: ='ט. ציוד טיפולי-שיקומי'!L9 -> 0 | G171: =IF(F171=0,"",'ט. ציוד טיפולי-שיקומי'!M9) ->  | H171: ='ט. ציוד טיפולי-שיקומי'!N9 -> 0
A172: ='ט. ציוד טיפולי-שיקומי'!B10 -> כיסאות רחצה- טילט | B172: ='ט. ציוד טיפולי-שיקומי'!G10 -> 0 | C172: ='ט. ציוד טיפולי-שיקומי'!H10 -> 0 | E172: ='ט. ציוד טיפולי-שיקומי'!K10 -> 0 | F172: ='ט. ציוד טיפולי-שיקומי'!L10 -> 0 | G172: =IF(F172=0,"",'ט. ציוד טיפולי-שיקומי'!M10) ->  | H172: ='ט. ציוד טיפולי-שיקומי'!N10 -> 0
A173: ='ט. ציוד טיפולי-שיקומי'!B11 -> כיסאות רחצה | B173: ='ט. ציוד טיפולי-שיקומי'!G11 -> 0 | C173: ='ט. ציוד טיפולי-שיקומי'!H11 -> 0 | E173: ='ט. ציוד טיפולי-שיקומי'!K11 -> 0 | F173: ='ט. ציוד טיפולי-שיקומי'!L11 -> 0 | G173: =IF(F173=0,"",'ט. ציוד טיפולי-שיקומי'!M11) ->  | H173: ='ט. ציוד טיפולי-שיקומי'!N11 -> 0
A174: ='ט. ציוד טיפולי-שיקומי'!B12 -> אלונקת רחצה | B174: ='ט. ציוד טיפולי-שיקומי'!G12 -> 0 | C174: ='ט. ציוד טיפולי-שיקומי'!H12 -> 0 | E174: ='ט. ציוד טיפולי-שיקומי'!K12 -> 0 | F174: ='ט. ציוד טיפולי-שיקומי'!L12 -> 0 | G174: =IF(F174=0,"",'ט. ציוד טיפולי-שיקומי'!M12) ->  | H174: ='ט. ציוד טיפולי-שיקומי'!N12 -> 0
A175: ='ט. ציוד טיפולי-שיקומי'!B13 -> מיטת החתלה כולל מזרן | B175: ='ט. ציוד טיפולי-שיקומי'!G13 -> 0 | C175: ='ט. ציוד טיפולי-שיקומי'!H13 -> 0 | E175: ='ט. ציוד טיפולי-שיקומי'!K13 -> 0 | F175: ='ט. ציוד טיפולי-שיקומי'!L13 -> 0 | G175: =IF(F175=0,"",'ט. ציוד טיפולי-שיקומי'!M13) ->  | H175: ='ט. ציוד טיפולי-שיקומי'!N13 -> 0
A176: ='ט. ציוד טיפולי-שיקומי'!B14 -> כיסאות שירותים נייח | B176: ='ט. ציוד טיפולי-שיקומי'!G14 -> 0 | C176: ='ט. ציוד טיפולי-שיקומי'!H14 -> 0 | E176: ='ט. ציוד טיפולי-שיקומי'!K14 -> 0 | F176: ='ט. ציוד טיפולי-שיקומי'!L14 -> 0 | G176: =IF(F176=0,"",'ט. ציוד טיפולי-שיקומי'!M14) ->  | H176: ='ט. ציוד טיפולי-שיקומי'!N14 -> 0
A177: ='ט. ציוד טיפולי-שיקומי'!B15 -> מאחזי יד (סכום גלובלי) | B177: ='ט. ציוד טיפולי-שיקומי'!G15 -> 0 | C177: ='ט. ציוד טיפולי-שיקומי'!H15 -> 0 | E177: ='ט. ציוד טיפולי-שיקומי'!K15 -> 0 | F177: ='ט. ציוד טיפולי-שיקומי'!L15 -> 0 | G177: =IF(F177=0,"",'ט. ציוד טיפולי-שיקומי'!M15) ->  | H177: ='ט. ציוד טיפולי-שיקומי'!N15 -> 0
A178: ='ט. ציוד טיפולי-שיקומי'!B16 -> הגבהות לאסלה עם ידיות | B178: ='ט. ציוד טיפולי-שיקומי'!G16 -> 0 | C178: ='ט. ציוד טיפולי-שיקומי'!H16 -> 0 | E178: ='ט. ציוד טיפולי-שיקומי'!K16 -> 0 | F178: ='ט. ציוד טיפולי-שיקומי'!L16 -> 0 | G178: =IF(F178=0,"",'ט. ציוד טיפולי-שיקומי'!M16) ->  | H178: ='ט. ציוד טיפולי-שיקומי'!N16 -> 0
A179: ='ט. ציוד טיפולי-שיקומי'!B17 -> סה"כ ציוד טיפולי שיקומי כולל מע"מ | C179: =SUM(C169:C178) -> 0 | E179: =A179 -> סה"כ ציוד טיפולי שיקומי כולל מע"מ | H179: =SUM(H169:H178) -> 0
A180: ='יג. סיכום'!B33 -> ציוד מטבח מבשל | E180: ציוד מטבח מבשל
A181: ='י. מטבח מבשל'!B7 -> מקרר ארון חד רוחבי | B181: ='י. מטבח מבשל'!G7 -> 0 | C181: ='י. מטבח מבשל'!H7 -> 0 | E181: ='י. מטבח מבשל'!K7 -> 0 | F181: ='י. מטבח מבשל'!L7 -> 0 | G181: =IF(F181=0,"",'י. מטבח מבשל'!M7) ->  | H181: ='י. מטבח מבשל'!N7 -> 0
A182: ='י. מטבח מבשל'!B8 -> מקפיא ארון חד רוחבי | B182: ='י. מטבח מבשל'!G8 -> 0 | C182: ='י. מטבח מבשל'!H8 -> 0 | E182: ='י. מטבח מבשל'!K8 -> 0 | F182: ='י. מטבח מבשל'!L8 -> 0 | G182: =IF(F182=0,"",'י. מטבח מבשל'!M8) ->  | H182: ='י. מטבח מבשל'!N8 -> 0
A183: ='י. מטבח מבשל'!B9 -> מקרר דלפק | B183: ='י. מטבח מבשל'!G9 -> 0 | C183: ='י. מטבח מבשל'!H9 -> 0 | E183: ='י. מטבח מבשל'!K9 -> 0 | F183: ='י. מטבח מבשל'!L9 -> 0 | G183: =IF(F183=0,"",'י. מטבח מבשל'!M9) ->  | H183: ='י. מטבח מבשל'!N9 -> 0
A184: ='י. מטבח מבשל'!B10 -> שולחן כניסה ויציאה למדיח כלים | B184: ='י. מטבח מבשל'!G10 -> 0 | C184: ='י. מטבח מבשל'!H10 -> 0 | E184: ='י. מטבח מבשל'!K10 -> 0 | F184: ='י. מטבח מבשל'!L10 -> 0 | G184: =IF(F184=0,"",'י. מטבח מבשל'!M10) ->  | H184: ='י. מטבח מבשל'!N10 -> 0
A185: ='י. מטבח מבשל'!B11 -> מדיח כלים חצי תעשייתי / תעשייתי | B185: ='י. מטבח מבשל'!G11 -> 0 | C185: ='י. מטבח מבשל'!H11 -> 0 | E185: ='י. מטבח מבשל'!K11 -> 0 | F185: ='י. מטבח מבשל'!L11 -> 0 | G185: =IF(F185=0,"",'י. מטבח מבשל'!M11) ->  | H185: ='י. מטבח מבשל'!N11 -> 0
A186: ='י. מטבח מבשל'!B12 -> מרכך מים 230 ליטר/שעה | B186: ='י. מטבח מבשל'!G12 -> 0 | C186: ='י. מטבח מבשל'!H12 -> 0 | E186: ='י. מטבח מבשל'!K12 -> 0 | F186: ='י. מטבח מבשל'!L12 -> 0 | G186: =IF(F186=0,"",'י. מטבח מבשל'!M12) ->  | H186: ='י. מטבח מבשל'!N12 -> 0
A187: ='י. מטבח מבשל'!B13 -> כיריים חשמליות / גז 6 להבות | B187: ='י. מטבח מבשל'!G13 -> 0 | C187: ='י. מטבח מבשל'!H13 -> 0 | E187: ='י. מטבח מבשל'!K13 -> 0 | F187: ='י. מטבח מבשל'!L13 -> 0 | G187: =IF(F187=0,"",'י. מטבח מבשל'!M13) ->  | H187: ='י. מטבח מבשל'!N13 -> 0
A188: ='י. מטבח מבשל'!B14 -> תנור קומביסטימר | B188: ='י. מטבח מבשל'!G14 -> 0 | C188: ='י. מטבח מבשל'!H14 -> 0 | E188: ='י. מטבח מבשל'!K14 -> 0 | F188: ='י. מטבח מבשל'!L14 -> 0 | G188: =IF(F188=0,"",'י. מטבח מבשל'!M14) ->  | H188: ='י. מטבח מבשל'!N14 -> 0
A189: ='י. מטבח מבשל'!B15 -> מקסר / בלנדר - בייתי / תעשייתי | B189: ='י. מטבח מבשל'!G15 -> 0 | C189: ='י. מטבח מבשל'!H15 -> 0 | E189: ='י. מטבח מבשל'!K15 -> 0 | F189: ='י. מטבח מבשל'!L15 -> 0 | G189: =IF(F189=0,"",'י. מטבח מבשל'!M15) ->  | H189: ='י. מטבח מבשל'!N15 -> 0
A190: ='י. מטבח מבשל'!B16 -> קוצץ ירקות שולחני | B190: ='י. מטבח מבשל'!G16 -> 0 | C190: ='י. מטבח מבשל'!H16 -> 0 | E190: ='י. מטבח מבשל'!K16 -> 0 | F190: ='י. מטבח מבשל'!L16 -> 0 | G190: =IF(F190=0,"",'י. מטבח מבשל'!M16) ->  | H190: ='י. מטבח מבשל'!N16 -> 0
A191: ='י. מטבח מבשל'!B17 -> מעבד מזון תעשייתי | B191: ='י. מטבח מבשל'!G17 -> 0 | C191: ='י. מטבח מבשל'!H17 -> 0 | E191: ='י. מטבח מבשל'!K17 -> 0 | F191: ='י. מטבח מבשל'!L17 -> 0 | G191: =IF(F191=0,"",'י. מטבח מבשל'!M17) ->  | H191: ='י. מטבח מבשל'!N17 -> 0
A192: ='י. מטבח מבשל'!B18 -> משטחי עבודה | B192: ='י. מטבח מבשל'!G18 -> 0 | C192: ='י. מטבח מבשל'!H18 -> 0 | E192: ='י. מטבח מבשל'!K18 -> 0 | F192: ='י. מטבח מבשל'!L18 -> 0 | G192: =IF(F192=0,"",'י. מטבח מבשל'!M18) ->  | H192: ='י. מטבח מבשל'!N18 -> 0
A193: ='י. מטבח מבשל'!B19 -> שולחן כיור | B193: ='י. מטבח מבשל'!G19 -> 0 | C193: ='י. מטבח מבשל'!H19 -> 0 | E193: ='י. מטבח מבשל'!K19 -> 0 | F193: ='י. מטבח מבשל'!L19 -> 0 | G193: =IF(F193=0,"",'י. מטבח מבשל'!M19) ->  | H193: ='י. מטבח מבשל'!N19 -> 0
A194: ='י. מטבח מבשל'!B20 -> מיקרוגל לעומס בינוני | B194: ='י. מטבח מבשל'!G20 -> 0 | C194: ='י. מטבח מבשל'!H20 -> 0 | E194: ='י. מטבח מבשל'!K20 -> 0 | F194: ='י. מטבח מבשל'!L20 -> 0 | G194: =IF(F194=0,"",'י. מטבח מבשל'!M20) ->  | H194: ='י. מטבח מבשל'!N20 -> 0
A195: ='י. מטבח מבשל'!B21 -> מחבת מתהפך 50 ליטר | B195: ='י. מטבח מבשל'!G21 -> 0 | C195: ='י. מטבח מבשל'!H21 -> 0 | E195: ='י. מטבח מבשל'!K21 -> 0 | F195: ='י. מטבח מבשל'!L21 -> 0 | G195: =IF(F195=0,"",'י. מטבח מבשל'!M21) ->  | H195: ='י. מטבח מבשל'!N21 -> 0
A196: ='י. מטבח מבשל'!B22 -> ארון חימום תחתון/ מעמד לתנור | B196: ='י. מטבח מבשל'!G22 -> 0 | C196: ='י. מטבח מבשל'!H22 -> 0 | E196: ='י. מטבח מבשל'!K22 -> 0 | F196: ='י. מטבח מבשל'!L22 -> 0 | G196: =IF(F196=0,"",'י. מטבח מבשל'!M22) ->  | H196: ='י. מטבח מבשל'!N22 -> 0
A197: ='י. מטבח מבשל'!B23 -> סוללה עם מתז עליון על שולחן | B197: ='י. מטבח מבשל'!G23 -> 0 | C197: ='י. מטבח מבשל'!H23 -> 0 | E197: ='י. מטבח מבשל'!K23 -> 0 | F197: ='י. מטבח מבשל'!L23 -> 0 | G197: =IF(F197=0,"",'י. מטבח מבשל'!M23) ->  | H197: ='י. מטבח מבשל'!N23 -> 0
A198: ='י. מטבח מבשל'!B24 -> ברז שולחני עם פיה מסתובבת לכיור עבודה | B198: ='י. מטבח מבשל'!G24 -> 0 | C198: ='י. מטבח מבשל'!H24 -> 0 | E198: ='י. מטבח מבשל'!K24 -> 0 | F198: ='י. מטבח מבשל'!L24 -> 0 | G198: =IF(F198=0,"",'י. מטבח מבשל'!M24) ->  | H198: ='י. מטבח מבשל'!N24 -> 0
A199: ='י. מטבח מבשל'!B25 -> מדף עליון כפול | B199: ='י. מטבח מבשל'!G25 -> 0 | C199: ='י. מטבח מבשל'!H25 -> 0 | E199: ='י. מטבח מבשל'!K25 -> 0 | F199: ='י. מטבח מבשל'!L25 -> 0 | G199: =IF(F199=0,"",'י. מטבח מבשל'!M25) ->  | H199: ='י. מטבח מבשל'!N25 -> 0
A200: ='י. מטבח מבשל'!B26 -> מתלה ייבוש לצלחות עם מדף לספלים | B200: ='י. מטבח מבשל'!G26 -> 0 | C200: ='י. מטבח מבשל'!H26 -> 0 | E200: ='י. מטבח מבשל'!K26 -> 0 | F200: ='י. מטבח מבשל'!L26 -> 0 | G200: =IF(F200=0,"",'י. מטבח מבשל'!M26) ->  | H200: ='י. מטבח מבשל'!N26 -> 0
... 41 more rows
